Workbook

Sheet Creditos
C4: IPDC - Instituto de Pesquisa e Desenvolvimento do Comércio
C11: Responsável técnico: Francisco Estevam Martins de Oliveira, Estatístico
C12: Coordenação de campo: Roberto Guerra, Sociólogo
F14: E-mail: stvm@uol.com.br

Sheet Descricao
F4: Menu de Perguntas
F8: Ordem | G8: Descrição
D10: 1 | E10: Dimensôes | F10: =IF(G10<>"",D10,"") -> 1 | G10: 1. Perfil de endvidamento do consumidor | T10: =CONCATENATE("Ilustração ",F10," - ",G10) -> Ilustração 1 - 1. Perfil de endvidamento do consumidor
D11: =D10+1 -> 2 | F11: 2 | G11: 2. Confiança e intençãode compra do consumidor | T11: Ilustração 2 - 2. Confiança e intençãode compra do consumidor
D12: =D11+1 -> 3 | F12: 3 | G12: 3. Índice de medo de desemprego | T12: Ilustração 3 - 3. Índice de medo de desemprego
D13: 4 | F13: 4 | G13: 4. Emprego do comércio varejista ampliado | T13: Ilustração 4 - 4. Emprego do comércio varejista ampliado
D14: 5 | F14: 5 | G14: 5. Emprego do setor de serviços | T14: Ilustração 5 - 5. Emprego do setor de serviços
D15: 6 | F15: 6 | G15: 6. Índice de preços do comércio varejista | T15: Ilustração 6 - 6. Índice de preços do comércio varejista
D16: 7 | F16: 7 | G16: 7. Índice de preços do setor de serviços | T16: Ilustração 7 - 7. Índice de preços do setor de serviços
D17: 8 | F17: 8 | T17: Ilustração 8 -
D18: 9 | F18: 1 | T18: Ilustração 1 -
D19: 10 | F19: 2 | T19: Ilustração 2 -
D20: 11 | F20: 3 | T20: Ilustração 3 -
D21: 12 | F21: 1 | T21: Ilustração 1 -
D22: 13 | F22: 2 | T22: Ilustração 2 -
D23: 14 | F23: 1 | T23: Ilustração 1 -
D24: 15 | F24: 2 | T24: Ilustração 2 -
D25: 16 | T25: Ilustração -
D26: 1 | E26: Componentes | F26: 1 | G26: Este é um lugar fisicamente seguro, possuindo equipamentos de segurança adequados | T26: Ilustração 1 - Este é um lugar fisicamente seguro, possuindo equipamentos de segurança adequados
D27: 2 | F27: 2 | G27: Nossas instalações contribuem para um bom e seguro ambiente | T27: Ilustração 2 - Nossas instalações contribuem para um bom e seguro ambiente
D28: 3 | F28: 3 | G28: Eu recebo os equipamentos e recursos necessários e adequados para realizar minhas atividades com segurança | T28: Ilustração 3 - Eu recebo os equipamentos e recursos necessários e adequados para realizar minhas atividades com segurança
D29: 4 | F29: 4 | G29: O XYZ é um lugar psicológica e emocionalmente saudável | T29: Ilustração 4 - O XYZ é um lugar psicológica e emocionalmente saudável
D30: 5 | F30: 5 | G30: As oportunidades de crescimento são dadas às pessoas que realmente merecem | T30: Ilustração 5 - As oportunidades de crescimento são dadas às pessoas que realmente merecem
D31: 6 | F31: 6 | G31: As pessoas aqui têm vontade de vir ao XYZ para desempenhar suas atividades | T31: Ilustração 6 - As pessoas aqui têm vontade de vir ao XYZ para desempenhar suas atividades
D32: 7 | F32: 7 | G32: As pessoas no XYZ são remuneradas adequadamente pelo que fazem | T32: Ilustração 7 - As pessoas no XYZ são remuneradas adequadamente pelo que fazem
D33: 8 | F33: 8 | G33: Acredito que o valor recebido em virtude de minha atuação se mostra justo | T33: Ilustração 8 - Acredito que o valor recebido em virtude de minha atuação se mostra justo
D34: 9 | F34: 9 | G34: No XYZ temos ações especiais, como programas de saúde laboral e incentivo à qualificação técnica-profissional | T34: Ilustração 9 - No XYZ temos ações especiais, como programas de saúde laboral e incentivo à qualificação técnica-profissional
D35: 10 | F35: 10 | G35: O XYZ oferece oportunidades e formas de desenvolvimento para o meu crescimento técnico-profissional | T35: Ilustração 10 - O XYZ oferece oportunidades e formas de desenvolvimento para o meu crescimento técnico-profissional
D36: 11 | F36: 11 | G36: As pessoas no XYZ estão dispostas a dar mais de si para desempenhar bem suas atividades | T36: Ilustração 11 - As pessoas no XYZ estão dispostas a dar mais de si para desempenhar bem suas atividades
D37: 12 | F37: 12 | G37: No XYZ, as pessoas se importam umas com as outras e se reúnem fora dele | T37: Ilustração 12 - No XYZ, as pessoas se importam umas com as outras e se reúnem fora dele
D38: 13 | F38: 13 | G38: As pessoas são orientadas e preparadas para agir corretamente em situações de emergência | T38: Ilustração 13 - As pessoas são orientadas e preparadas para agir corretamente em situações de emergência
D39: 14 | F39: 14 | G39: Quando as pessoas mudam de equipe ou de área, as pessoas do XYZ fazem com que se sintam rapidamente "em casa" | T39: Ilustração 14 - Quando as pessoas mudam de equipe ou de área, as pessoas do XYZ fazem com que se sintam rapidamente "em casa"
D40: 15 | F40: 15 | G40: Os lideres/gestores deixam claras suas expectativas sobre o desempenho profissional das pessoas | T40: Ilustração 15 - Os lideres/gestores deixam claras suas expectativas sobre o desempenho profissional das pessoas
D41: 16 | F41: 16 | G41: Posso fazer qualquer pergunta razoável aos lideres/gestores e obter respostas diretas | T41: Ilustração 16 - Posso fazer qualquer pergunta razoável aos lideres/gestores e obter respostas diretas
D42: 17 | F42: 17 | G42: É fácil aproximar-se e falar com os lideres/gestores | T42: Ilustração 17 - É fácil aproximar-se e falar com os lideres/gestores
D43: 18 | F43: 18 | G43: Os lideres/gestores incentivam ideias e sugestões levando-as em consideração de forma sincera | T43: Ilustração 18 - Os lideres/gestores incentivam ideias e sugestões levando-as em consideração de forma sincera
D44: 19 | F44: 19 | G44: Os lideres/gestores me mantêm informado sobre assuntos importantes e sobre mudanças do XYZ | T44: Ilustração 19 - Os lideres/gestores me mantêm informado sobre assuntos importantes e sobre mudanças do XYZ
D45: 20 | F45: 20 | G45: Os lideres/gestores têm uma visão clara de para onde estamos indo e como fazemos para chegar lá | T45: Ilustração 20 - Os lideres/gestores têm uma visão clara de para onde estamos indo e como fazemos para chegar lá
D46: 21 | F46: 21 | G46: Os lideres/gestores confiam que as pessoas fazem um bom trabalho sem precisar cobrá-las | T46: Ilustração 21 - Os lideres/gestores confiam que as pessoas fazem um bom trabalho sem precisar cobrá-las
D47: 22 | F47: 22 | G47: Os lideres/gestores envolvem as pessoas em decisões que afetam suas atividades e seu ambiente de convívio | T47: Ilustração 22 - Os lideres/gestores envolvem as pessoas em decisões que afetam suas atividades e seu ambiente de convívio
D48: 23 | F48: 23 | G48: Os lideres/gestores aqui dão autonomia às pessoas | T48: Ilustração 23 - Os lideres/gestores aqui dão autonomia às pessoas
D49: 24 | F49: 24 | G49: Os lideres/gestores agem de acordo com o que falam | T49: Ilustração 24 - Os lideres/gestores agem de acordo com o que falam
D50: 25 | F50: 25 | G50: Acredito que os lideres/gestores só promoveriam reduções de equipes como último recurso | T50: Ilustração 25 - Acredito que os lideres/gestores só promoveriam reduções de equipes como último recurso
D51: 26 | F51: 26 | G51: Os lideres/gestores são honestos e éticos na condução dos negócios | T51: Ilustração 26 - Os lideres/gestores são honestos e éticos na condução dos negócios
D52: 27 | F52: 27 | G52: Este é um lugar amigável para desenvolver minhas atividades profissionais | T52: Ilustração 27 - Este é um lugar amigável para desenvolver minhas atividades profissionais
D53: 28 | F53: 28 | G53: Minhas atividades têm um sentido especial, não é só "mais uma ocupação" | T53: Ilustração 28 - Minhas atividades têm um sentido especial, não é só "mais uma ocupação"
D54: 29 | F54: 29 | G54: Quando vejo o que fazemos no XYZ, sinto-me orgulhoso | T54: Ilustração 29 - Quando vejo o que fazemos no XYZ, sinto-me orgulhoso
D55: 30 | F55: 30 | G55: Eu me sinto bem com a forma como contribuímos para a sociedade com o que fazemos no XYZ | T55: Ilustração 30 - Eu me sinto bem com a forma como contribuímos para a sociedade com o que fazemos no XYZ
D56: 31 | F56: 31 | G56: Tenho orgulho de contar a outras pessoas que faço parte deste XYZ | T56: Ilustração 31 - Tenho orgulho de contar a outras pessoas que faço parte deste XYZ
D57: 32 | F57: 32 | G57: Ainda pretendo fazer parte do XYZ por muito tempo | T57: Ilustração 32 - Ainda pretendo fazer parte do XYZ por muito tempo
D58: 33 | F58: 33 | G58: Sinto que faço diferença como parte do XYZ | T58: Ilustração 33 - Sinto que faço diferença como parte do XYZ
D59: 34 | F59: 34 | G59: As pessoas são encorajadas a equilibrar sua vida profissional e pessoal | T59: Ilustração 34 - As pessoas são encorajadas a equilibrar sua vida profissional e pessoal
D60: 35 | F60: 35 | G60: Quando se entra no XYZ, os meios de ambientação fazem você entir-se bem-vindo | T60: Ilustração 35 - Quando se entra no XYZ, os meios de ambientação fazem você entir-se bem-vindo
D61: 36 | F61: 36 | G61: As pessoas aqui são bem tratadas independente do gênero (masculino/feminino), da cor/raça e da idade | T61: Ilustração 36 - As pessoas aqui são bem tratadas independente do gênero (masculino/feminino), da cor/raça e da idade
D62: 37 | F62: 37 | G62: As pessoas aqui são bem tratadas independente de sua religião, orientação política e/ou opção sexual | T62: Ilustração 37 - As pessoas aqui são bem tratadas independente de sua religião, orientação política e/ou opção sexual
D63: 38 | F63: 38 | G63: O XYZ demonstra preocupação com a comunidade, apoia e adota programas sociais | T63: Ilustração 38 - O XYZ demonstra preocupação com a comunidade, apoia e adota programas sociais
D64: 39 | F64: 39 | G64: As atividades do XYZ não agridem o meio-ambiente | T64: Ilustração 39 - As atividades do XYZ não agridem o meio-ambiente
D65: 40 | F65: 40 | G65: Espero ser reconhecido pelo meu trabalho nas equipes do XYZ e poder ampliar minhas possibilidades de crescimento profissional e assim obter melhores rendimentos | T65: Ilustração 40 - Espero ser reconhecido pelo meu trabalho nas equipes do XYZ e poder ampliar minhas possibilidades de crescimento profissional e assim obter melhores rendimentos
D66: 41 | F66: 41 | G66: Espero aproveitar as oportunidades de aprender mais e estar pronto para crescer no XYZ | T66: Ilustração 41 - Espero aproveitar as oportunidades de aprender mais e estar pronto para crescer no XYZ
D67: 42 | F67: 42 | G67: Espero alcançar meus objetivos e metas individuais conquistando meu respeito próprio e ampliando minha autoconfiança | T67: Ilustração 42 - Espero alcançar meus objetivos e metas individuais conquistando meu respeito próprio e ampliando minha autoconfiança
D68: 43 | F68: 43 | G68: Espero me destacar e ser percebido pelos meus lideres e colegas como parte importante no grupo | T68: Ilustração 43 - Espero me destacar e ser percebido pelos meus lideres e colegas como parte importante no grupo
D69: 44 | F69: 44 | G69: Espero contribuir para o XYZ crescer e sentir-me seguro como parte dele | T69: Ilustração 44 - Espero contribuir para o XYZ crescer e sentir-me seguro como parte dele
D70: 45 | F70: 45 | G70: Espero tornar-me mais eficiente e estar pronto para superar meus próprios limites recebendo novos desafios | T70: Ilustração 45 - Espero tornar-me mais eficiente e estar pronto para superar meus próprios limites recebendo novos desafios
D71: 46 | F71: 46 | G71: Espero sentir-me parte de um plano maior. Estar informado, contribuir com sugestões de melhoria e participar das decisões | T71: Ilustração 46 - Espero sentir-me parte de um plano maior. Estar informado, contribuir com sugestões de melhoria e participar das decisões
D72: 47 | F72: 47 | G72: Espero ser reconhecido e lembrado pelos meios de comunicação interna do XYZ. Me destacar entre os colegas de equipe | T72: Ilustração 47 - Espero ser reconhecido e lembrado pelos meios de comunicação interna do XYZ. Me destacar entre os colegas de equipe
D73: 48 | F73: 48 | G73: Espero estar preparado para ter mais autonomia de ação nas rotinas de minhas atribuições | T73: Ilustração 48 - Espero estar preparado para ter mais autonomia de ação nas rotinas de minhas atribuições
D74: 49 | F74: =IF(G74<>"",D74,"") -> 49 | G74: Espero me engajar em grupos especiais voluntários e estar lutando por um mundo melhor | T74: =CONCATENATE("Ilustração ",F74," - ",G74) -> Ilustração 49 - Espero me engajar em grupos especiais voluntários e estar lutando por um mundo melhor
D75: 50 | T75: Ilustração -
D76: =D75+1 -> 51 | T76: Ilustração -
D77: 52 | T77: Ilustração -
D78: 53 | T78: Ilustração -
D79: 54 | T79: Ilustração -
D80: 55 | T80: Ilustração -
D81: 56 | T81: Ilustração -
D82: 57 | T82: Ilustração -
D83: 58 | T83: Ilustração -
D84: 59 | T84: Ilustração -
D85: 60 | T85: Ilustração -
D86: 61 | T86: Ilustração -
D87: 62 | T87: Ilustração -
D88: 63 | T88: Ilustração -
D89: 64 | T89: Ilustração -
D90: 65 | T90: Ilustração -
D91: 66 | T91: Ilustração -
D92: 67 | T92: Ilustração -
D93: 68 | T93: Ilustração -
D94: 69 | T94: Ilustração -
D95: 70 | T95: Ilustração -
D96: 71 | T96: Ilustração -
D97: 72 | T97: Ilustração -
D98: 73 | T98: Ilustração -
D99: 74 | T99: Ilustração -
D100: 75 | T100: Ilustração -
D101: 76 | T101: Ilustração -
D102: 77 | T102: Ilustração -
D103: 78 | T103: Ilustração -
D104: 79 | T104: Ilustração -
D105: 80 | T105: Ilustração -
D106: 81 | T106: Ilustração -
D107: 82 | T107: Ilustração -
D108: 83 | T108: Ilustração -
D109: 84 | T109: Ilustração -
D110: 85 | T110: Ilustração -
D111: 86 | T111: Ilustração -
D112: 87 | T112: Ilustração -
D113: 88 | T113: Ilustração -
D114: 89 | T114: Ilustração -
D115: 90 | T115: Ilustração -
D116: 91 | T116: Ilustração -
D117: 92 | T117: Ilustração -
D118: 93 | T118: Ilustração -
D119: 94 | T119: Ilustração -
D120: 95 | T120: Ilustração -
D121: 96 | T121: Ilustração -
D122: 97 | T122: Ilustração -
D123: 98 | T123: Ilustração -
D124: 99 | T124: Ilustração -
D125: 100 | T125: Ilustração -
D126: 101 | T126: Ilustração -
D127: 102 | T127: Ilustração -
D128: 103 | T128: Ilustração -
D129: 104 | T129: Ilustração -
D130: 105 | T130: Ilustração -
D131: 106 | T131: Ilustração -
D132: 107 | T132: Ilustração -
D133: 108 | T133: Ilustração -
D134: 109 | T134: Ilustração -
D135: 110 | T135: Ilustração -
D136: 111 | T136: Ilustração -
D137: 112 | T137: Ilustração -
D138: 113 | F138: =IF(G138<>"",D138,"") ->  | T138: =CONCATENATE("Ilustração ",F138," - ",G138) -> Ilustração -
D139: 114 | T139: Ilustração -
D140: =D139+1 -> 115 | T140: Ilustração -
D141: 116 | T141: Ilustração -
D142: 117 | T142: Ilustração -
D143: 118 | T143: Ilustração -
D144: 119 | T144: Ilustração -
D145: 120 | T145: Ilustração -
D146: 121 | T146: Ilustração -
D147: 122 | T147: Ilustração -
D148: 123 | T148: Ilustração -
D149: 124 | T149: Ilustração -
D150: 125 | T150: Ilustração -
D151: 126 | T151: Ilustração -
D152: 127 | T152: Ilustração -
D153: 128 | T153: Ilustração -
D154: 129 | T154: Ilustração -
D155: 130 | T155: Ilustração -
D156: 131 | T156: Ilustração -
D157: 132 | T157: Ilustração -
D158: 133 | T158: Ilustração -
D159: 134 | T159: Ilustração -
D160: 135 | T160: Ilustração -
D161: 136 | T161: Ilustração -
D162: 137 | T162: Ilustração -
D163: 138 | T163: Ilustração -
D164: 139 | T164: Ilustração -
D165: 140 | T165: Ilustração -
D166: 141 | T166: Ilustração -
D167: 142 | T167: Ilustração -
D168: 143 | T168: Ilustração -
D169: 144 | T169: Ilustração -
D170: 145 | T170: Ilustração -
D171: 146 | T171: Ilustração -
D172: 147 | T172: Ilustração -
D173: 148 | T173: Ilustração -
D174: 149 | T174: Ilustração -
D175: 150 | T175: Ilustração -
D176: 151 | T176: Ilustração -
D177: 152 | T177: Ilustração -
D178: 153 | T178: Ilustração -
D179: 154 | T179: Ilustração -
D180: 155 | T180: Ilustração -
D181: 156 | T181: Ilustração -
D182: 157 | T182: Ilustração -
D183: 158 | T183: Ilustração -
D184: 159 | T184: Ilustração -
D185: 160 | T185: Ilustração -
D186: 161 | T186: Ilustração -
D187: 162 | T187: Ilustração -
D188: 163 | T188: Ilustração -
D189: 164 | T189: Ilustração -
D190: 165 | T190: Ilustração -
D191: 166 | T191: Ilustração -
D192: 167 | T192: Ilustração -
D193: 168 | T193: Ilustração -
D194: 169 | T194: Ilustração -
D195: 170 | T195: Ilustração -
D196: 171 | T196: Ilustração -
D197: 172 | T197: Ilustração -
D198: 173 | T198: Ilustração -
D199: 174 | T199: Ilustração -
D200: 175 | T200: Ilustração -
D201: 176 | T201: Ilustração -
D202: 177 | F202: =IF(G202<>"",D202,"") ->  | T202: =CONCATENATE("Ilustração ",F202," - ",G202) -> Ilustração -
D203: 178 | T203: Ilustração -
D204: =D203+1 -> 179 | T204: Ilustração -
D205: 180 | T205: Ilustração -
D206: 181 | T206: Ilustração -
D207: 182 | T207: Ilustração -
... 1651 more rows

Sheet Parâmetros (hidden)
F6: Parâmetros
F8: Federação do Comércio do Estado do Ceará
F9: Panorama de Indicadores do Comércio de Bens, Serviços e Turismo
F10: Fortaleza - Ceará - Brasil
F11: =CONCATENATE("Última atualização: ",TEXT(TODAY(),"dd-mmm-aaaa")) -> Última atualização: 14-out-2019

Sheet u0
E2: Análise Gráfica
D3: Pesquis Mensal do Comércio Varejista (PMC)
D4: Região Metropolitana de Fortaleza - Ceará (CE)
C9: Ilustração 1 - Variação percentual mensal do volume de vendas do comércio varejista frente ao mês anterior
C10: Ilustração 2 - Variação percentual mensal do volume de vendas do comércio varejista frente ao mesmo mês do ano anterior
C11: Ilustração 3 - Variação percentual mensal do volume de vendas do comércio varejista no ano
C12: Ilustração 4 - Volume de vendas do comércio varejista à Vista - em %
C13: Ilustração 5 - Volume de vendas do comércio varejista à Prestação - em % | P13: Projeções do volume de vendas no ano
C14: Ilustração 6 - Volume de vendas do comércio varejista com Cartão - em % | P14: =u1_1!$AU$2 -> Ilustração 10.A - Variação percentual mensal do volume de vendas do comércio varejista frente ao mês anterior
C15: Ilustração 7 - Volume de vendas do comércio varejista com Cheques - em % | P15: =u2_1!$AU$2 -> Ilustração 11.A - Variação percentual mensal do volume de vendas do comércio varejista frente ao mesmo mês do ano anterior
C16: Ilustração 8 - Volume de vendas do comércio varejista com Convênio - em % | P16: =u3_1!$AU$2 -> Ilustração 12.A - Variação percentual mensal do volume de vendas do comércio varejista acumulado no ano
C17: Ilustração 9 - Volume de vendas do comércio varejista com Empenho - em %

Sheet u1
AU2: =$AN$14 -> Ilustração 1.A - Variação percentual mensal do volume de vendas do comércio varejista frente ao mês anterior
D4: =CONCATENATE("Selecionado por subconjunto: ",MID(E6,1,200)) -> Selecionado por subconjunto: Comércio Ampliado | AU4: =$D$4 -> Selecionado por subconjunto: Comércio Ampliado
D5: h | E5: 1
D6: g | E6: Comércio Ampliado
K7: h | L7: 1 | AU7: =IF(ISERROR(#REF!),"",#REF!) -> 
D8: Rótulos de Linha | E8: Média de v | K8: y1 | L8: 2018-12-01
D9: 2018-08-01 | E9: 2.427745665
D10: 2018-09-01 | E10: -6.207674944 | K10: Rótulos de Linha | L10: Média de v | AM10: Número: | AN10: 1
D11: 2018-10-01 | E11: 3.008423586 | K11: Livros, Jornais, Revistas e Papelaria | L11: 92.33333333 | AM11: Título: | AN11: Variação percentual mensal do volume de vendas do comércio varejista frente ao mês anterior
D12: 2018-11-01 | E12: 7.710280374 | K12: Lojas de Vestuários,Tecidos e Calçados | L12: 82.70321361
D13: 2018-12-01 | E13: 11.4967462 | K13: Comercio Restrito | L13: 16.54526535
D14: 2019-01-01 | E14: -15.34440846 | K14: Comércio Ampliado | L14: 11.4967462 | AM14: =CONCATENATE("Ilustração ",AN10,".A"," - ",AN11) -> Ilustração 1.A - Variação percentual mensal do volume de vendas do comércio varejista frente ao mês anterior | AN14: =IF(AN10=0,"",AM14) -> Ilustração 1.A - Variação percentual mensal do volume de vendas do comércio varejista frente ao mês anterior
D15: 2019-02-01 | E15: -9.584500723 | K15: Farmácias, Perfumarias e Produtos Óticos | L15: 6.355932203 | AM15: =CONCATENATE("Ilustração ",AN10,".B"," - ",AN11) -> Ilustração 1.B - Variação percentual mensal do volume de vendas do comércio varejista frente ao mês anterior | AN15: =IF(AN10=0,"",AM15) -> Ilustração 1.B - Variação percentual mensal do volume de vendas do comércio varejista frente ao mês anterior
D16: 2019-03-01 | E16: 2.832310063 | K16: Supermercados e Minimercados | L16: 3.529411765
D17: 2019-04-01 | E17: 4.21417607 | K17: Revendedoras de Veículos | L17: 2.576687117
D18: 2019-05-01 | E18: 6.962545497 | K18: Lojas de Móveis e Decorações | L18: -7.589285714
D19: 2019-06-01 | E19: -6.663073414 | K19: Lojas de Materiais de Construção | L19: -7.826086957
D20: 2019-07-01 | E20: 6.360049853 | K20: Lojas de Eletroeeletrônicos e Informática | L20: -18.93764434
D21: 2019-08-01 | E21: -1.188811804 | K21: Combustíveis e Lubrificantes e GLP | L21: -20.38834951
AU51: =$AN$15 -> Ilustração 1.B - Variação percentual mensal do volume de vendas do comércio varejista frente ao mês anterior
AU55: =IF(ISERROR(#REF!),"",#REF!) -> 
AU271: =IF(D221<>"",D221,"") ->  | AW271: =IF(E221<>"",E221,"") ->  | AY271: =IF(F221<>"",F221,"") ->  | BA271: =IF(H221<>"",H221,"") -> 
AU335: =IF(D285<>"",D285,"") ->  | AW335: =IF(E285<>"",E285,"") ->  | AY335: =IF(F285<>"",F285,"") ->  | BA335: =IF(H285<>"",H285,"") -> 
AU399: =IF(D349<>"",D349,"") ->  | AW399: =IF(E349<>"",E349,"") ->  | AY399: =IF(F349<>"",F349,"") ->  | BA399: =IF(H349<>"",H349,"") -> 
AU463: =IF(D413<>"",D413,"") ->  | AW463: =IF(E413<>"",E413,"") ->  | AY463: =IF(F413<>"",F413,"") ->  | BA463: =IF(H413<>"",H413,"") -> 
AU527: =IF(D477<>"",D477,"") ->  | AW527: =IF(E477<>"",E477,"") ->  | AY527: =IF(F477<>"",F477,"") ->  | BA527: =IF(H477<>"",H477,"") -> 
AU591: =IF(D541<>"",D541,"") ->  | AW591: =IF(E541<>"",E541,"") ->  | AY591: =IF(F541<>"",F541,"") ->  | BA591: =IF(H541<>"",H541,"") -> 
AU655: =IF(D605<>"",D605,"") ->  | AW655: =IF(E605<>"",E605,"") ->  | AY655: =IF(F605<>"",F605,"") ->  | BA655: =IF(H605<>"",H605,"") -> 
AU719: =IF(D669<>"",D669,"") ->  | AW719: =IF(E669<>"",E669,"") ->  | AY719: =IF(F669<>"",F669,"") ->  | BA719: =IF(H669<>"",H669,"") -> 
AU783: =IF(D733<>"",D733,"") ->  | AW783: =IF(E733<>"",E733,"") ->  | AY783: =IF(F733<>"",F733,"") ->  | BA783: =IF(H733<>"",H733,"") -> 
AU847: =IF(D797<>"",D797,"") ->  | AW847: =IF(E797<>"",E797,"") ->  | AY847: =IF(F797<>"",F797,"") ->  | BA847: =IF(H797<>"",H797,"") -> 
AU911: =IF(D861<>"",D861,"") ->  | AW911: =IF(E861<>"",E861,"") ->  | AY911: =IF(F861<>"",F861,"") ->  | BA911: =IF(H861<>"",H861,"") -> 
AU975: =IF(D925<>"",D925,"") ->  | AW975: =IF(E925<>"",E925,"") ->  | AY975: =IF(F925<>"",F925,"") ->  | BA975: =IF(H925<>"",H925,"") -> 
AU1039: =IF(D989<>"",D989,"") ->  | AW1039: =IF(E989<>"",E989,"") ->  | AY1039: =IF(F989<>"",F989,"") ->  | BA1039: =IF(H989<>"",H989,"") -> 
AU1103: =IF(D1053<>"",D1053,"") ->  | AW1103: =IF(E1053<>"",E1053,"") ->  | AY1103: =IF(F1053<>"",F1053,"") ->  | BA1103: =IF(H1053<>"",H1053,"") -> 
AU1167: =IF(D1117<>"",D1117,"") ->  | AW1167: =IF(E1117<>"",E1117,"") ->  | AY1167: =IF(F1117<>"",F1117,"") ->  | BA1167: =IF(H1117<>"",H1117,"") -> 
AU1231: =IF(D1181<>"",D1181,"") ->  | AW1231: =IF(E1181<>"",E1181,"") ->  | AY1231: =IF(F1181<>"",F1181,"") ->  | BA1231: =IF(H1181<>"",H1181,"") -> 
AU1295: =IF(D1245<>"",D1245,"") ->  | AW1295: =IF(E1245<>"",E1245,"") ->  | AY1295: =IF(F1245<>"",F1245,"") ->  | BA1295: =IF(H1245<>"",H1245,"") -> 
AU1359: =IF(D1309<>"",D1309,"") ->  | AW1359: =IF(E1309<>"",E1309,"") ->  | AY1359: =IF(F1309<>"",F1309,"") ->  | BA1359: =IF(H1309<>"",H1309,"") -> 
AU1423: =IF(D1373<>"",D1373,"") ->  | AW1423: =IF(E1373<>"",E1373,"") ->  | AY1423: =IF(F1373<>"",F1373,"") ->  | BA1423: =IF(H1373<>"",H1373,"") -> 
AU1487: =IF(D1437<>"",D1437,"") ->  | AW1487: =IF(E1437<>"",E1437,"") ->  | AY1487: =IF(F1437<>"",F1437,"") ->  | BA1487: =IF(H1437<>"",H1437,"") -> 
AU1551: =IF(D1501<>"",D1501,"") ->  | AW1551: =IF(E1501<>"",E1501,"") ->  | AY1551: =IF(F1501<>"",F1501,"") ->  | BA1551: =IF(H1501<>"",H1501,"") -> 
AU1591: =IF(D1541<>"",D1541,"") -> 
AU1592: =IF(D1542<>"",D1542,"") -> 
AU1593: =IF(D1543<>"",D1543,"") -> 
AU1594: =IF(D1544<>"",D1544,"") -> 

Sheet u2
AU2: =$AN$14 -> Ilustração 2.A - Variação percentual mensal do volume de vendas do comércio varejista frente ao mesmo mês do ano anterior
D4: =CONCATENATE("Selecionado por subconjunto: ",MID(E6,1,200)) -> Selecionado por subconjunto: Comércio Ampliado | AU4: =$D$4 -> Selecionado por subconjunto: Comércio Ampliado
D5: h | E5: 2
D6: g | E6: Comércio Ampliado
K7: h | L7: 2 | AU7: =IF(ISERROR(#REF!),"",#REF!) -> 
D8: Rótulos de Linha | E8: Média de v | K8: y1 | L8: 2018-12-01
D9: 2018-08-01 | E9: 3.7470726
D10: 2018-09-01 | E10: 0.1204819277 | K10: Rótulos de Linha | L10: Média de v | AM10: Número: | AN10: 2
D11: 2018-10-01 | E11: 0.8244994111 | K11: Lojas de Móveis e Decorações | L11: 5.076142132 | AM11: Título: | AN11: Variação percentual mensal do volume de vendas do comércio varejista frente ao mesmo mês do ano anterior
D12: 2018-11-01 | E12: 4.063205418 | K12: Revendedoras de Veículos | L12: 3.850931677
D13: 2018-12-01 | E13: -0.09718172983 | K13: Farmácias, Perfumarias e Produtos Óticos | L13: 2.448979592
D14: 2019-01-01 | E14: -0.08501939863 | K14: Comércio Ampliado | L14: -0.09718172983 | AM14: =CONCATENATE("Ilustração ",AN10,".A"," - ",AN11) -> Ilustração 2.A - Variação percentual mensal do volume de vendas do comércio varejista frente ao mesmo mês do ano anterior | AN14: =IF(AN10=0,"",AM14) -> Ilustração 2.A - Variação percentual mensal do volume de vendas do comércio varejista frente ao mesmo mês do ano anterior
D15: 2019-02-01 | E15: 9.895175249 | K15: Lojas de Materiais de Construção | L15: -0.5861664713 | AM15: =CONCATENATE("Ilustração ",AN10,".B"," - ",AN11) -> Ilustração 2.B - Variação percentual mensal do volume de vendas do comércio varejista frente ao mesmo mês do ano anterior | AN15: =IF(AN10=0,"",AM15) -> Ilustração 2.B - Variação percentual mensal do volume de vendas do comércio varejista frente ao mesmo mês do ano anterior
D16: 2019-03-01 | E16: -5.031047996 | K16: Lojas de Vestuários,Tecidos e Calçados | L16: -0.616966581
D17: 2019-04-01 | E17: 2.583195192 | K17: Comercio Restrito | L17: -1.060070671
D18: 2019-05-01 | E18: 5.737913943 | K18: Combustíveis e Lubrificantes e GLP | L18: -1.204819277
D19: 2019-06-01 | E19: 2.290059297 | K19: Lojas de Eletroeeletrônicos e Informática | L19: -5.263157895
D20: 2019-07-01 | E20: 3.513189464 | K20: Supermercados e Minimercados | L20: -9.701492537
D21: 2019-08-01 | E21: -0.1416932637 | K21: Livros, Jornais, Revistas e Papelaria | L21: -20.95890411
AU51: =$AN$15 -> Ilustração 2.B - Variação percentual mensal do volume de vendas do comércio varejista frente ao mesmo mês do ano anterior
AU55: =IF(ISERROR(#REF!),"",#REF!) -> 
AU271: =IF(D221<>"",D221,"") ->  | AW271: =IF(E221<>"",E221,"") ->  | AY271: =IF(F221<>"",F221,"") ->  | BA271: =IF(H221<>"",H221,"") -> 
AU335: =IF(D285<>"",D285,"") ->  | AW335: =IF(E285<>"",E285,"") ->  | AY335: =IF(F285<>"",F285,"") ->  | BA335: =IF(H285<>"",H285,"") -> 
AU399: =IF(D349<>"",D349,"") ->  | AW399: =IF(E349<>"",E349,"") ->  | AY399: =IF(F349<>"",F349,"") ->  | BA399: =IF(H349<>"",H349,"") -> 
AU463: =IF(D413<>"",D413,"") ->  | AW463: =IF(E413<>"",E413,"") ->  | AY463: =IF(F413<>"",F413,"") ->  | BA463: =IF(H413<>"",H413,"") -> 
AU527: =IF(D477<>"",D477,"") ->  | AW527: =IF(E477<>"",E477,"") ->  | AY527: =IF(F477<>"",F477,"") ->  | BA527: =IF(H477<>"",H477,"") -> 
AU591: =IF(D541<>"",D541,"") ->  | AW591: =IF(E541<>"",E541,"") ->  | AY591: =IF(F541<>"",F541,"") ->  | BA591: =IF(H541<>"",H541,"") -> 
AU655: =IF(D605<>"",D605,"") ->  | AW655: =IF(E605<>"",E605,"") ->  | AY655: =IF(F605<>"",F605,"") ->  | BA655: =IF(H605<>"",H605,"") -> 
AU719: =IF(D669<>"",D669,"") ->  | AW719: =IF(E669<>"",E669,"") ->  | AY719: =IF(F669<>"",F669,"") ->  | BA719: =IF(H669<>"",H669,"") -> 
AU783: =IF(D733<>"",D733,"") ->  | AW783: =IF(E733<>"",E733,"") ->  | AY783: =IF(F733<>"",F733,"") ->  | BA783: =IF(H733<>"",H733,"") -> 
AU847: =IF(D797<>"",D797,"") ->  | AW847: =IF(E797<>"",E797,"") ->  | AY847: =IF(F797<>"",F797,"") ->  | BA847: =IF(H797<>"",H797,"") -> 
AU911: =IF(D861<>"",D861,"") ->  | AW911: =IF(E861<>"",E861,"") ->  | AY911: =IF(F861<>"",F861,"") ->  | BA911: =IF(H861<>"",H861,"") -> 
AU975: =IF(D925<>"",D925,"") ->  | AW975: =IF(E925<>"",E925,"") ->  | AY975: =IF(F925<>"",F925,"") ->  | BA975: =IF(H925<>"",H925,"") -> 
AU1039: =IF(D989<>"",D989,"") ->  | AW1039: =IF(E989<>"",E989,"") ->  | AY1039: =IF(F989<>"",F989,"") ->  | BA1039: =IF(H989<>"",H989,"") -> 
AU1103: =IF(D1053<>"",D1053,"") ->  | AW1103: =IF(E1053<>"",E1053,"") ->  | AY1103: =IF(F1053<>"",F1053,"") ->  | BA1103: =IF(H1053<>"",H1053,"") -> 
AU1167: =IF(D1117<>"",D1117,"") ->  | AW1167: =IF(E1117<>"",E1117,"") ->  | AY1167: =IF(F1117<>"",F1117,"") ->  | BA1167: =IF(H1117<>"",H1117,"") -> 
AU1231: =IF(D1181<>"",D1181,"") ->  | AW1231: =IF(E1181<>"",E1181,"") ->  | AY1231: =IF(F1181<>"",F1181,"") ->  | BA1231: =IF(H1181<>"",H1181,"") -> 
AU1295: =IF(D1245<>"",D1245,"") ->  | AW1295: =IF(E1245<>"",E1245,"") ->  | AY1295: =IF(F1245<>"",F1245,"") ->  | BA1295: =IF(H1245<>"",H1245,"") -> 
AU1359: =IF(D1309<>"",D1309,"") ->  | AW1359: =IF(E1309<>"",E1309,"") ->  | AY1359: =IF(F1309<>"",F1309,"") ->  | BA1359: =IF(H1309<>"",H1309,"") -> 
AU1423: =IF(D1373<>"",D1373,"") ->  | AW1423: =IF(E1373<>"",E1373,"") ->  | AY1423: =IF(F1373<>"",F1373,"") ->  | BA1423: =IF(H1373<>"",H1373,"") -> 
AU1487: =IF(D1437<>"",D1437,"") ->  | AW1487: =IF(E1437<>"",E1437,"") ->  | AY1487: =IF(F1437<>"",F1437,"") ->  | BA1487: =IF(H1437<>"",H1437,"") -> 
AU1551: =IF(D1501<>"",D1501,"") ->  | AW1551: =IF(E1501<>"",E1501,"") ->  | AY1551: =IF(F1501<>"",F1501,"") ->  | BA1551: =IF(H1501<>"",H1501,"") -> 
AU1591: =IF(D1541<>"",D1541,"") -> 
AU1592: =IF(D1542<>"",D1542,"") -> 
AU1593: =IF(D1543<>"",D1543,"") -> 
AU1594: =IF(D1544<>"",D1544,"") -> 

Sheet u3
AU2: =$AN$14 -> Ilustração 3.A - Variação percentual mensal do volume de vendas do comércio varejista acumulado no ano
D4: =CONCATENATE("Selecionado por subconjunto: ",MID(E6,1,200)) -> Selecionado por subconjunto: Comercio Restrito | AU4: =$D$4 -> Selecionado por subconjunto: Comercio Restrito
D5: h | E5: 3
D6: g | E6: Comercio Restrito
K7: h | L7: 3 | AU7: =IF(ISERROR(#REF!),"",#REF!) -> 
D8: Rótulos de Linha | E8: Média de v | K8: y1 | L8: 2019-08-01
D9: 2018-08-01 | E9: 3.172723872
D10: 2018-09-01 | E10: 2.627275374 | K10: Rótulos de Linha | L10: Média de v | AM10: Número: | AN10: 3
D11: 2018-10-01 | E11: 2.488939491 | K11: Lojas de Móveis e Decorações | L11: 19.94754895 | AM11: Título: | AN11: Variação percentual mensal do volume de vendas do comércio varejista acumulado no ano
D12: 2018-11-01 | E12: 2.496192641 | K12: Revendedoras de Veículos | L12: 12.76980954
D13: 2018-12-01 | E13: 2.112371204 | K13: Lojas de Materiais de Construção | L13: 10.17363468
D14: 2019-01-01 | E14: -1.440057738 | K14: Comércio Ampliado | L14: 2.17409617 | AM14: =CONCATENATE("Ilustração ",AN10,".A"," - ",AN11) -> Ilustração 3.A - Variação percentual mensal do volume de vendas do comércio varejista acumulado no ano | AN14: =IF(AN10=0,"",AM14) -> Ilustração 3.A - Variação percentual mensal do volume de vendas do comércio varejista acumulado no ano
D15: 2019-02-01 | E15: 1.042591824 | K15: Lojas de Vestuários,Tecidos e Calçados | L15: 2.119269957 | AM15: =CONCATENATE("Ilustração ",AN10,".B"," - ",AN11) -> Ilustração 3.B - Variação percentual mensal do volume de vendas do comércio varejista acumulado no ano | AN15: =IF(AN10=0,"",AM15) -> Ilustração 3.B - Variação percentual mensal do volume de vendas do comércio varejista acumulado no ano
D16: 2019-03-01 | E16: -1.500720037 | K16: Farmácias, Perfumarias e Produtos Óticos | L16: 0.7796376119
D17: 2019-04-01 | E17: -1.266263178 | K17: Comercio Restrito | L17: -2.362775616
D18: 2019-05-01 | E18: -1.208684775 | K18: Combustíveis e Lubrificantes e GLP | L18: -6.126549299
D19: 2019-06-01 | E19: -1.668614091 | K19: Supermercados e Minimercados | L19: -7.482869689
D20: 2019-07-01 | E20: -1.971453496 | K20: Livros, Jornais, Revistas e Papelaria | L20: -12.24603108
D21: 2019-08-01 | E21: -2.362775616 | K21: Lojas de Eletroeeletrônicos e Informática | L21: -12.33521589
AU51: =$AN$15 -> Ilustração 3.B - Variação percentual mensal do volume de vendas do comércio varejista acumulado no ano
AU55: =IF(ISERROR(#REF!),"",#REF!) -> 
AU271: =IF(D221<>"",D221,"") ->  | AW271: =IF(E221<>"",E221,"") ->  | AY271: =IF(F221<>"",F221,"") ->  | BA271: =IF(H221<>"",H221,"") -> 
AU335: =IF(D285<>"",D285,"") ->  | AW335: =IF(E285<>"",E285,"") ->  | AY335: =IF(F285<>"",F285,"") ->  | BA335: =IF(H285<>"",H285,"") -> 
AU399: =IF(D349<>"",D349,"") ->  | AW399: =IF(E349<>"",E349,"") ->  | AY399: =IF(F349<>"",F349,"") ->  | BA399: =IF(H349<>"",H349,"") -> 
AU463: =IF(D413<>"",D413,"") ->  | AW463: =IF(E413<>"",E413,"") ->  | AY463: =IF(F413<>"",F413,"") ->  | BA463: =IF(H413<>"",H413,"") -> 
AU527: =IF(D477<>"",D477,"") ->  | AW527: =IF(E477<>"",E477,"") ->  | AY527: =IF(F477<>"",F477,"") ->  | BA527: =IF(H477<>"",H477,"") -> 
AU591: =IF(D541<>"",D541,"") ->  | AW591: =IF(E541<>"",E541,"") ->  | AY591: =IF(F541<>"",F541,"") ->  | BA591: =IF(H541<>"",H541,"") -> 
AU655: =IF(D605<>"",D605,"") ->  | AW655: =IF(E605<>"",E605,"") ->  | AY655: =IF(F605<>"",F605,"") ->  | BA655: =IF(H605<>"",H605,"") -> 
AU719: =IF(D669<>"",D669,"") ->  | AW719: =IF(E669<>"",E669,"") ->  | AY719: =IF(F669<>"",F669,"") ->  | BA719: =IF(H669<>"",H669,"") -> 
AU783: =IF(D733<>"",D733,"") ->  | AW783: =IF(E733<>"",E733,"") ->  | AY783: =IF(F733<>"",F733,"") ->  | BA783: =IF(H733<>"",H733,"") -> 
AU847: =IF(D797<>"",D797,"") ->  | AW847: =IF(E797<>"",E797,"") ->  | AY847: =IF(F797<>"",F797,"") ->  | BA847: =IF(H797<>"",H797,"") -> 
AU911: =IF(D861<>"",D861,"") ->  | AW911: =IF(E861<>"",E861,"") ->  | AY911: =IF(F861<>"",F861,"") ->  | BA911: =IF(H861<>"",H861,"") -> 
AU975: =IF(D925<>"",D925,"") ->  | AW975: =IF(E925<>"",E925,"") ->  | AY975: =IF(F925<>"",F925,"") ->  | BA975: =IF(H925<>"",H925,"") -> 
AU1039: =IF(D989<>"",D989,"") ->  | AW1039: =IF(E989<>"",E989,"") ->  | AY1039: =IF(F989<>"",F989,"") ->  | BA1039: =IF(H989<>"",H989,"") -> 
AU1103: =IF(D1053<>"",D1053,"") ->  | AW1103: =IF(E1053<>"",E1053,"") ->  | AY1103: =IF(F1053<>"",F1053,"") ->  | BA1103: =IF(H1053<>"",H1053,"") -> 
AU1167: =IF(D1117<>"",D1117,"") ->  | AW1167: =IF(E1117<>"",E1117,"") ->  | AY1167: =IF(F1117<>"",F1117,"") ->  | BA1167: =IF(H1117<>"",H1117,"") -> 
AU1231: =IF(D1181<>"",D1181,"") ->  | AW1231: =IF(E1181<>"",E1181,"") ->  | AY1231: =IF(F1181<>"",F1181,"") ->  | BA1231: =IF(H1181<>"",H1181,"") -> 
AU1295: =IF(D1245<>"",D1245,"") ->  | AW1295: =IF(E1245<>"",E1245,"") ->  | AY1295: =IF(F1245<>"",F1245,"") ->  | BA1295: =IF(H1245<>"",H1245,"") -> 
AU1359: =IF(D1309<>"",D1309,"") ->  | AW1359: =IF(E1309<>"",E1309,"") ->  | AY1359: =IF(F1309<>"",F1309,"") ->  | BA1359: =IF(H1309<>"",H1309,"") -> 
AU1423: =IF(D1373<>"",D1373,"") ->  | AW1423: =IF(E1373<>"",E1373,"") ->  | AY1423: =IF(F1373<>"",F1373,"") ->  | BA1423: =IF(H1373<>"",H1373,"") -> 
AU1487: =IF(D1437<>"",D1437,"") ->  | AW1487: =IF(E1437<>"",E1437,"") ->  | AY1487: =IF(F1437<>"",F1437,"") ->  | BA1487: =IF(H1437<>"",H1437,"") -> 
AU1551: =IF(D1501<>"",D1501,"") ->  | AW1551: =IF(E1501<>"",E1501,"") ->  | AY1551: =IF(F1501<>"",F1501,"") ->  | BA1551: =IF(H1501<>"",H1501,"") -> 
AU1591: =IF(D1541<>"",D1541,"") -> 
AU1592: =IF(D1542<>"",D1542,"") -> 
AU1593: =IF(D1543<>"",D1543,"") -> 
AU1594: =IF(D1544<>"",D1544,"") -> 

Sheet u4
AU2: =$AN$14 -> Ilustração 4.A - Volume de vendas do comércio à Vista - em %
D4: =CONCATENATE("Selecionado por subconjunto: ",MID(E6,1,200)) -> Selecionado por subconjunto: Comércio Ampliado | AU4: =$D$4 -> Selecionado por subconjunto: Comércio Ampliado
D5: h | E5: 4
D6: g | E6: Comércio Ampliado
K7: h | L7: 4 | AU7: =IF(ISERROR(#REF!),"",#REF!) -> 
D8: Rótulos de Linha | E8: Média de v | K8: y1 | L8: (Tudo)
D9: 2018-08-01 | E9: 31.17191217
D10: 2018-09-01 | E10: 30.70641442 | K10: Rótulos de Linha | L10: Média de v | AM10: Número: | AN10: 4
D11: 2018-10-01 | E11: 31.97738307 | K11: Supermercados e Minimercados | L11: 43.023279 | AM11: Título: | AN11: Volume de vendas do comércio à Vista - em %
D12: 2018-11-01 | E12: 31.1 | K12: Combustíveis e Lubrificantes e GLP | L12: 35.41277179
D13: 2018-12-01 | E13: 31.95451889 | K13: Farmácias, Perfumarias e Produtos Óticos | L13: 35.22178691
D14: 2019-01-01 | E14: 30.75116877 | K14: Lojas de Eletroeeletrônicos e Informática | L14: 33.86721336 | AM14: =CONCATENATE("Ilustração ",AN10,".A"," - ",AN11) -> Ilustração 4.A - Volume de vendas do comércio à Vista - em % | AN14: =IF(AN10=0,"",AM14) -> Ilustração 4.A - Volume de vendas do comércio à Vista - em %
D15: 2019-02-01 | E15: 31.97738307 | K15: Livros, Jornais, Revistas e Papelaria | L15: 31.39561371 | AM15: =CONCATENATE("Ilustração ",AN10,".B"," - ",AN11) -> Ilustração 4.B - Volume de vendas do comércio à Vista - em % | AN15: =IF(AN10=0,"",AM15) -> Ilustração 4.B - Volume de vendas do comércio à Vista - em %
D16: 2019-03-01 | E16: 32.12025252 | K16: Comércio Ampliado | L16: 31.29108264
D17: 2019-04-01 | E17: 30.1182281 | K17: Lojas de Materiais de Construção | L17: 30.42825872
D18: 2019-05-01 | E18: 32.12025252 | K18: Lojas de Móveis e Decorações | L18: 28.74806183
D19: 2019-06-01 | E19: 31.11924031 | K19: Lojas de Vestuários,Tecidos e Calçados | L19: 25.23993453
D20: 2019-07-01 | E20: 31.75621604 | K20: Revendedoras de Veículos | L20: 18.88999524
D21: 2019-08-01 | E21: 29.91110449
AU51: =$AN$15 -> Ilustração 4.B - Volume de vendas do comércio à Vista - em %
AU55: =IF(ISERROR(#REF!),"",#REF!) -> 
AU271: =IF(D221<>"",D221,"") ->  | AW271: =IF(E221<>"",E221,"") ->  | AY271: =IF(F221<>"",F221,"") ->  | BA271: =IF(H221<>"",H221,"") -> 
AU335: =IF(D285<>"",D285,"") ->  | AW335: =IF(E285<>"",E285,"") ->  | AY335: =IF(F285<>"",F285,"") ->  | BA335: =IF(H285<>"",H285,"") -> 
AU399: =IF(D349<>"",D349,"") ->  | AW399: =IF(E349<>"",E349,"") ->  | AY399: =IF(F349<>"",F349,"") ->  | BA399: =IF(H349<>"",H349,"") -> 
AU463: =IF(D413<>"",D413,"") ->  | AW463: =IF(E413<>"",E413,"") ->  | AY463: =IF(F413<>"",F413,"") ->  | BA463: =IF(H413<>"",H413,"") -> 
AU527: =IF(D477<>"",D477,"") ->  | AW527: =IF(E477<>"",E477,"") ->  | AY527: =IF(F477<>"",F477,"") ->  | BA527: =IF(H477<>"",H477,"") -> 
AU591: =IF(D541<>"",D541,"") ->  | AW591: =IF(E541<>"",E541,"") ->  | AY591: =IF(F541<>"",F541,"") ->  | BA591: =IF(H541<>"",H541,"") -> 
AU655: =IF(D605<>"",D605,"") ->  | AW655: =IF(E605<>"",E605,"") ->  | AY655: =IF(F605<>"",F605,"") ->  | BA655: =IF(H605<>"",H605,"") -> 
AU719: =IF(D669<>"",D669,"") ->  | AW719: =IF(E669<>"",E669,"") ->  | AY719: =IF(F669<>"",F669,"") ->  | BA719: =IF(H669<>"",H669,"") -> 
AU783: =IF(D733<>"",D733,"") ->  | AW783: =IF(E733<>"",E733,"") ->  | AY783: =IF(F733<>"",F733,"") ->  | BA783: =IF(H733<>"",H733,"") -> 
AU847: =IF(D797<>"",D797,"") ->  | AW847: =IF(E797<>"",E797,"") ->  | AY847: =IF(F797<>"",F797,"") ->  | BA847: =IF(H797<>"",H797,"") -> 
AU911: =IF(D861<>"",D861,"") ->  | AW911: =IF(E861<>"",E861,"") ->  | AY911: =IF(F861<>"",F861,"") ->  | BA911: =IF(H861<>"",H861,"") -> 
AU975: =IF(D925<>"",D925,"") ->  | AW975: =IF(E925<>"",E925,"") ->  | AY975: =IF(F925<>"",F925,"") ->  | BA975: =IF(H925<>"",H925,"") -> 
AU1039: =IF(D989<>"",D989,"") ->  | AW1039: =IF(E989<>"",E989,"") ->  | AY1039: =IF(F989<>"",F989,"") ->  | BA1039: =IF(H989<>"",H989,"") -> 
AU1103: =IF(D1053<>"",D1053,"") ->  | AW1103: =IF(E1053<>"",E1053,"") ->  | AY1103: =IF(F1053<>"",F1053,"") ->  | BA1103: =IF(H1053<>"",H1053,"") -> 
AU1167: =IF(D1117<>"",D1117,"") ->  | AW1167: =IF(E1117<>"",E1117,"") ->  | AY1167: =IF(F1117<>"",F1117,"") ->  | BA1167: =IF(H1117<>"",H1117,"") -> 
AU1231: =IF(D1181<>"",D1181,"") ->  | AW1231: =IF(E1181<>"",E1181,"") ->  | AY1231: =IF(F1181<>"",F1181,"") ->  | BA1231: =IF(H1181<>"",H1181,"") -> 
AU1295: =IF(D1245<>"",D1245,"") ->  | AW1295: =IF(E1245<>"",E1245,"") ->  | AY1295: =IF(F1245<>"",F1245,"") ->  | BA1295: =IF(H1245<>"",H1245,"") -> 
AU1359: =IF(D1309<>"",D1309,"") ->  | AW1359: =IF(E1309<>"",E1309,"") ->  | AY1359: =IF(F1309<>"",F1309,"") ->  | BA1359: =IF(H1309<>"",H1309,"") -> 
AU1423: =IF(D1373<>"",D1373,"") ->  | AW1423: =IF(E1373<>"",E1373,"") ->  | AY1423: =IF(F1373<>"",F1373,"") ->  | BA1423: =IF(H1373<>"",H1373,"") -> 
AU1487: =IF(D1437<>"",D1437,"") ->  | AW1487: =IF(E1437<>"",E1437,"") ->  | AY1487: =IF(F1437<>"",F1437,"") ->  | BA1487: =IF(H1437<>"",H1437,"") -> 
AU1551: =IF(D1501<>"",D1501,"") ->  | AW1551: =IF(E1501<>"",E1501,"") ->  | AY1551: =IF(F1501<>"",F1501,"") ->  | BA1551: =IF(H1501<>"",H1501,"") -> 
AU1591: =IF(D1541<>"",D1541,"") -> 
AU1592: =IF(D1542<>"",D1542,"") -> 
AU1593: =IF(D1543<>"",D1543,"") -> 
AU1594: =IF(D1544<>"",D1544,"") -> 

Sheet u5
AU2: =$AN$14 -> Ilustração 5.A - Volume de vendas do comércio a Prestação - em %
D4: =CONCATENATE("Selecionado por subconjunto: ",MID(E6,1,200)) -> Selecionado por subconjunto: Comércio Ampliado | AU4: =$D$4 -> Selecionado por subconjunto: Comércio Ampliado
D5: h | E5: 5
D6: g | E6: Comércio Ampliado
K7: h | L7: 5 | AU7: =IF(ISERROR(#REF!),"",#REF!) -> 
D8: Rótulos de Linha | E8: Média de v | K8: y1 | L8: (Tudo)
D9: 2018-08-01 | E9: 9.220069941
D10: 2018-09-01 | E10: 10.44168523 | K10: Rótulos de Linha | L10: Média de v | AM10: Número: | AN10: 5
D11: 2018-10-01 | E11: 23.00035837 | K11: Revendedoras de Veículos | L11: 77.75200106 | AM11: Título: | AN11: Volume de vendas do comércio a Prestação - em %
D12: 2018-11-01 | E12: 12.3 | K12: Lojas de Materiais de Construção | L12: 25.5877705
D13: 2018-12-01 | E13: 10.43935051 | K13: Livros, Jornais, Revistas e Papelaria | L13: 24.46822793
D14: 2019-01-01 | E14: 10.68984506 | K14: Lojas de Vestuários,Tecidos e Calçados | L14: 19.73996672 | AM14: =CONCATENATE("Ilustração ",AN10,".A"," - ",AN11) -> Ilustração 5.A - Volume de vendas do comércio a Prestação - em % | AN14: =IF(AN10=0,"",AM14) -> Ilustração 5.A - Volume de vendas do comércio a Prestação - em %
D15: 2019-02-01 | E15: 23.00035837 | K15: Lojas de Móveis e Decorações | L15: 13.79956221 | AM15: =CONCATENATE("Ilustração ",AN10,".B"," - ",AN11) -> Ilustração 5.B - Volume de vendas do comércio a Prestação - em % | AN15: =IF(AN10=0,"",AM15) -> Ilustração 5.B - Volume de vendas do comércio a Prestação - em %
D16: 2019-03-01 | E16: 9.845088016 | K16: Comércio Ampliado | L16: 12.42062363
D17: 2019-04-01 | E17: 9.849896991 | K17: Lojas de Eletroeeletrônicos e Informática | L17: 6.092796245
D18: 2019-05-01 | E18: 9.845088016 | K18: Combustíveis e Lubrificantes e GLP | L18: 2.839796187
D19: 2019-06-01 | E19: 9.847492503 | K19: Supermercados e Minimercados | L19: 0.7719785018
D20: 2019-07-01 | E20: 9.257887533 | K20: Farmácias, Perfumarias e Produtos Óticos | L20: 0.2292474361
D21: 2019-08-01 | E21: 13.73098664
AU51: =$AN$15 -> Ilustração 5.B - Volume de vendas do comércio a Prestação - em %
AU55: =IF(ISERROR(#REF!),"",#REF!) -> 
AU271: =IF(D221<>"",D221,"") ->  | AW271: =IF(E221<>"",E221,"") ->  | AY271: =IF(F221<>"",F221,"") ->  | BA271: =IF(H221<>"",H221,"") -> 
AU335: =IF(D285<>"",D285,"") ->  | AW335: =IF(E285<>"",E285,"") ->  | AY335: =IF(F285<>"",F285,"") ->  | BA335: =IF(H285<>"",H285,"") -> 
AU399: =IF(D349<>"",D349,"") ->  | AW399: =IF(E349<>"",E349,"") ->  | AY399: =IF(F349<>"",F349,"") ->  | BA399: =IF(H349<>"",H349,"") -> 
AU463: =IF(D413<>"",D413,"") ->  | AW463: =IF(E413<>"",E413,"") ->  | AY463: =IF(F413<>"",F413,"") ->  | BA463: =IF(H413<>"",H413,"") -> 
AU527: =IF(D477<>"",D477,"") ->  | AW527: =IF(E477<>"",E477,"") ->  | AY527: =IF(F477<>"",F477,"") ->  | BA527: =IF(H477<>"",H477,"") -> 
AU591: =IF(D541<>"",D541,"") ->  | AW591: =IF(E541<>"",E541,"") ->  | AY591: =IF(F541<>"",F541,"") ->  | BA591: =IF(H541<>"",H541,"") -> 
AU655: =IF(D605<>"",D605,"") ->  | AW655: =IF(E605<>"",E605,"") ->  | AY655: =IF(F605<>"",F605,"") ->  | BA655: =IF(H605<>"",H605,"") -> 
AU719: =IF(D669<>"",D669,"") ->  | AW719: =IF(E669<>"",E669,"") ->  | AY719: =IF(F669<>"",F669,"") ->  | BA719: =IF(H669<>"",H669,"") -> 
AU783: =IF(D733<>"",D733,"") ->  | AW783: =IF(E733<>"",E733,"") ->  | AY783: =IF(F733<>"",F733,"") ->  | BA783: =IF(H733<>"",H733,"") -> 
AU847: =IF(D797<>"",D797,"") ->  | AW847: =IF(E797<>"",E797,"") ->  | AY847: =IF(F797<>"",F797,"") ->  | BA847: =IF(H797<>"",H797,"") -> 
AU911: =IF(D861<>"",D861,"") ->  | AW911: =IF(E861<>"",E861,"") ->  | AY911: =IF(F861<>"",F861,"") ->  | BA911: =IF(H861<>"",H861,"") -> 
AU975: =IF(D925<>"",D925,"") ->  | AW975: =IF(E925<>"",E925,"") ->  | AY975: =IF(F925<>"",F925,"") ->  | BA975: =IF(H925<>"",H925,"") -> 
AU1039: =IF(D989<>"",D989,"") ->  | AW1039: =IF(E989<>"",E989,"") ->  | AY1039: =IF(F989<>"",F989,"") ->  | BA1039: =IF(H989<>"",H989,"") -> 
AU1103: =IF(D1053<>"",D1053,"") ->  | AW1103: =IF(E1053<>"",E1053,"") ->  | AY1103: =IF(F1053<>"",F1053,"") ->  | BA1103: =IF(H1053<>"",H1053,"") -> 
AU1167: =IF(D1117<>"",D1117,"") ->  | AW1167: =IF(E1117<>"",E1117,"") ->  | AY1167: =IF(F1117<>"",F1117,"") ->  | BA1167: =IF(H1117<>"",H1117,"") -> 
AU1231: =IF(D1181<>"",D1181,"") ->  | AW1231: =IF(E1181<>"",E1181,"") ->  | AY1231: =IF(F1181<>"",F1181,"") ->  | BA1231: =IF(H1181<>"",H1181,"") -> 
AU1295: =IF(D1245<>"",D1245,"") ->  | AW1295: =IF(E1245<>"",E1245,"") ->  | AY1295: =IF(F1245<>"",F1245,"") ->  | BA1295: =IF(H1245<>"",H1245,"") -> 
AU1359: =IF(D1309<>"",D1309,"") ->  | AW1359: =IF(E1309<>"",E1309,"") ->  | AY1359: =IF(F1309<>"",F1309,"") ->  | BA1359: =IF(H1309<>"",H1309,"") -> 
AU1423: =IF(D1373<>"",D1373,"") ->  | AW1423: =IF(E1373<>"",E1373,"") ->  | AY1423: =IF(F1373<>"",F1373,"") ->  | BA1423: =IF(H1373<>"",H1373,"") -> 
AU1487: =IF(D1437<>"",D1437,"") ->  | AW1487: =IF(E1437<>"",E1437,"") ->  | AY1487: =IF(F1437<>"",F1437,"") ->  | BA1487: =IF(H1437<>"",H1437,"") -> 
AU1551: =IF(D1501<>"",D1501,"") ->  | AW1551: =IF(E1501<>"",E1501,"") ->  | AY1551: =IF(F1501<>"",F1501,"") ->  | BA1551: =IF(H1501<>"",H1501,"") -> 
AU1591: =IF(D1541<>"",D1541,"") -> 
AU1592: =IF(D1542<>"",D1542,"") -> 
AU1593: =IF(D1543<>"",D1543,"") -> 
AU1594: =IF(D1544<>"",D1544,"") -> 

Sheet u6
AU2: =$AN$14 -> Ilustração 6.A - Volume de vendas do comércio com Cartão - em %
D4: =CONCATENATE("Selecionado por subconjunto: ",MID(E6,1,200)) -> Selecionado por subconjunto: Comércio Ampliado | AU4: =$D$4 -> Selecionado por subconjunto: Comércio Ampliado
D5: h | E5: 6
D6: g | E6: Comércio Ampliado
K7: h | L7: 6 | AU7: =IF(ISERROR(#REF!),"",#REF!) -> 
D8: Rótulos de Linha | E8: Média de v | K8: y1 | L8: (Tudo)
D9: 2018-08-01 | E9: 53.10890589
D10: 2018-09-01 | E10: 50.47551663 | K10: Rótulos de Linha | L10: Média de v | AM10: Número: | AN10: 6
D11: 2018-10-01 | E11: 43.32082595 | K11: Combustíveis e Lubrificantes e GLP | L11: 57.91161546 | AM11: Título: | AN11: Volume de vendas do comércio com Cartão - em %
D12: 2018-11-01 | E12: 45.8 | K12: Supermercados e Minimercados | L12: 53.55886561
D13: 2018-12-01 | E13: 49.56194128 | K13: Lojas de Eletroeeletrônicos e Informática | L13: 53.36062713
D14: 2019-01-01 | E14: 49.10138973 | K14: Lojas de Móveis e Decorações | L14: 52.76658605 | AM14: =CONCATENATE("Ilustração ",AN10,".A"," - ",AN11) -> Ilustração 6.A - Volume de vendas do comércio com Cartão - em % | AN14: =IF(AN10=0,"",AM14) -> Ilustração 6.A - Volume de vendas do comércio com Cartão - em %
D15: 2019-02-01 | E15: 43.32082595 | K15: Farmácias, Perfumarias e Produtos Óticos | L15: 49.79111034 | AM15: =CONCATENATE("Ilustração ",AN10,".B"," - ",AN11) -> Ilustração 6.B - Volume de vendas do comércio com Cartão - em % | AN15: =IF(AN10=0,"",AM15) -> Ilustração 6.B - Volume de vendas do comércio com Cartão - em %
D16: 2019-03-01 | E16: 49.62378589 | K16: Lojas de Vestuários,Tecidos e Calçados | L16: 48.62507882
D17: 2019-04-01 | E17: 51.26859224 | K17: Comércio Ampliado | L17: 48.39917035
D18: 2019-05-01 | E18: 49.62378589 | K18: Livros, Jornais, Revistas e Papelaria | L18: 38.08664626
D19: 2019-06-01 | E19: 50.44618906 | K19: Lojas de Materiais de Construção | L19: 35.26772535
D20: 2019-07-01 | E20: 45.60990846 | K20: Revendedoras de Veículos | L20: 3.864297638
D21: 2019-08-01 | E21: 47.92754759
AU51: =$AN$15 -> Ilustração 6.B - Volume de vendas do comércio com Cartão - em %
AU55: =IF(ISERROR(#REF!),"",#REF!) -> 
AU271: =IF(D221<>"",D221,"") ->  | AW271: =IF(E221<>"",E221,"") ->  | AY271: =IF(F221<>"",F221,"") ->  | BA271: =IF(H221<>"",H221,"") -> 
AU335: =IF(D285<>"",D285,"") ->  | AW335: =IF(E285<>"",E285,"") ->  | AY335: =IF(F285<>"",F285,"") ->  | BA335: =IF(H285<>"",H285,"") -> 
AU399: =IF(D349<>"",D349,"") ->  | AW399: =IF(E349<>"",E349,"") ->  | AY399: =IF(F349<>"",F349,"") ->  | BA399: =IF(H349<>"",H349,"") -> 
AU463: =IF(D413<>"",D413,"") ->  | AW463: =IF(E413<>"",E413,"") ->  | AY463: =IF(F413<>"",F413,"") ->  | BA463: =IF(H413<>"",H413,"") -> 
AU527: =IF(D477<>"",D477,"") ->  | AW527: =IF(E477<>"",E477,"") ->  | AY527: =IF(F477<>"",F477,"") ->  | BA527: =IF(H477<>"",H477,"") -> 
AU591: =IF(D541<>"",D541,"") ->  | AW591: =IF(E541<>"",E541,"") ->  | AY591: =IF(F541<>"",F541,"") ->  | BA591: =IF(H541<>"",H541,"") -> 
AU655: =IF(D605<>"",D605,"") ->  | AW655: =IF(E605<>"",E605,"") ->  | AY655: =IF(F605<>"",F605,"") ->  | BA655: =IF(H605<>"",H605,"") -> 
AU719: =IF(D669<>"",D669,"") ->  | AW719: =IF(E669<>"",E669,"") ->  | AY719: =IF(F669<>"",F669,"") ->  | BA719: =IF(H669<>"",H669,"") -> 
AU783: =IF(D733<>"",D733,"") ->  | AW783: =IF(E733<>"",E733,"") ->  | AY783: =IF(F733<>"",F733,"") ->  | BA783: =IF(H733<>"",H733,"") -> 
AU847: =IF(D797<>"",D797,"") ->  | AW847: =IF(E797<>"",E797,"") ->  | AY847: =IF(F797<>"",F797,"") ->  | BA847: =IF(H797<>"",H797,"") -> 
AU911: =IF(D861<>"",D861,"") ->  | AW911: =IF(E861<>"",E861,"") ->  | AY911: =IF(F861<>"",F861,"") ->  | BA911: =IF(H861<>"",H861,"") -> 
AU975: =IF(D925<>"",D925,"") ->  | AW975: =IF(E925<>"",E925,"") ->  | AY975: =IF(F925<>"",F925,"") ->  | BA975: =IF(H925<>"",H925,"") -> 
AU1039: =IF(D989<>"",D989,"") ->  | AW1039: =IF(E989<>"",E989,"") ->  | AY1039: =IF(F989<>"",F989,"") ->  | BA1039: =IF(H989<>"",H989,"") -> 
AU1103: =IF(D1053<>"",D1053,"") ->  | AW1103: =IF(E1053<>"",E1053,"") ->  | AY1103: =IF(F1053<>"",F1053,"") ->  | BA1103: =IF(H1053<>"",H1053,"") -> 
AU1167: =IF(D1117<>"",D1117,"") ->  | AW1167: =IF(E1117<>"",E1117,"") ->  | AY1167: =IF(F1117<>"",F1117,"") ->  | BA1167: =IF(H1117<>"",H1117,"") -> 
AU1231: =IF(D1181<>"",D1181,"") ->  | AW1231: =IF(E1181<>"",E1181,"") ->  | AY1231: =IF(F1181<>"",F1181,"") ->  | BA1231: =IF(H1181<>"",H1181,"") -> 
AU1295: =IF(D1245<>"",D1245,"") ->  | AW1295: =IF(E1245<>"",E1245,"") ->  | AY1295: =IF(F1245<>"",F1245,"") ->  | BA1295: =IF(H1245<>"",H1245,"") -> 
AU1359: =IF(D1309<>"",D1309,"") ->  | AW1359: =IF(E1309<>"",E1309,"") ->  | AY1359: =IF(F1309<>"",F1309,"") ->  | BA1359: =IF(H1309<>"",H1309,"") -> 
AU1423: =IF(D1373<>"",D1373,"") ->  | AW1423: =IF(E1373<>"",E1373,"") ->  | AY1423: =IF(F1373<>"",F1373,"") ->  | BA1423: =IF(H1373<>"",H1373,"") -> 
AU1487: =IF(D1437<>"",D1437,"") ->  | AW1487: =IF(E1437<>"",E1437,"") ->  | AY1487: =IF(F1437<>"",F1437,"") ->  | BA1487: =IF(H1437<>"",H1437,"") -> 
AU1551: =IF(D1501<>"",D1501,"") ->  | AW1551: =IF(E1501<>"",E1501,"") ->  | AY1551: =IF(F1501<>"",F1501,"") ->  | BA1551: =IF(H1501<>"",H1501,"") -> 
AU1591: =IF(D1541<>"",D1541,"") -> 
AU1592: =IF(D1542<>"",D1542,"") -> 
AU1593: =IF(D1543<>"",D1543,"") -> 
AU1594: =IF(D1544<>"",D1544,"") -> 

Sheet u7
AU2: =$AN$14 -> Ilustração 7.A - Volume de vendas do comércio com Cheques - em %
D4: =CONCATENATE("Selecionado por subconjunto: ",MID(E6,1,200)) -> Selecionado por subconjunto: Comércio Ampliado | AU4: =$D$4 -> Selecionado por subconjunto: Comércio Ampliado
D5: h | E5: 7
D6: g | E6: Comércio Ampliado
K7: h | L7: 7 | AU7: =IF(ISERROR(#REF!),"",#REF!) -> 
D8: Rótulos de Linha | E8: Média de v | K8: y1 | L8: (Tudo)
D9: 2018-08-01 | E9: 2.8730764
D10: 2018-09-01 | E10: 4.677799912 | K10: Rótulos de Linha | L10: Média de v | AM10: Número: | AN10: 7
D11: 2018-10-01 | E11: 0.8284890904 | K11: Lojas de Materiais de Construção | L11: 8.850801034 | AM11: Título: | AN11: Volume de vendas do comércio com Cheques - em %
D12: 2018-11-01 | E12: 7 | K12: Lojas de Vestuários,Tecidos e Calçados | L12: 5.805050833
D13: 2018-12-01 | E13: 3.773547524 | K13: Lojas de Móveis e Decorações | L13: 4.611457473
D14: 2019-01-01 | E14: 5.16798266 | K14: Comércio Ampliado | L14: 3.724976802 | AM14: =CONCATENATE("Ilustração ",AN10,".A"," - ",AN11) -> Ilustração 7.A - Volume de vendas do comércio com Cheques - em % | AN14: =IF(AN10=0,"",AM14) -> Ilustração 7.A - Volume de vendas do comércio com Cheques - em %
D15: 2019-02-01 | E15: 0.8284890904 | K15: Livros, Jornais, Revistas e Papelaria | L15: 3.447277241 | AM15: =CONCATENATE("Ilustração ",AN10,".B"," - ",AN11) -> Ilustração 7.B - Volume de vendas do comércio com Cheques - em % | AN15: =IF(AN10=0,"",AM15) -> Ilustração 7.B - Volume de vendas do comércio com Cheques - em %
D16: 2019-03-01 | E16: 3.389718795 | K16: Lojas de Eletroeeletrônicos e Informática | L16: 1.573532224
D17: 2019-04-01 | E17: 4.902076119 | K17: Farmácias, Perfumarias e Produtos Óticos | L17: 0.9675039622
D18: 2019-05-01 | E18: 3.389718795 | K18: Supermercados e Minimercados | L18: 0.72862769
D19: 2019-06-01 | E19: 4.145897457 | K19: Combustíveis e Lubrificantes e GLP | L19: 0.6300183463
D20: 2019-07-01 | E20: 3.955284547 | K20: Revendedoras de Veículos | L20: 0.3902058316
D21: 2019-08-01 | E21: 3.492618036
AU51: =$AN$15 -> Ilustração 7.B - Volume de vendas do comércio com Cheques - em %
AU55: =IF(ISERROR(#REF!),"",#REF!) -> 
AU271: =IF(D221<>"",D221,"") ->  | AW271: =IF(E221<>"",E221,"") ->  | AY271: =IF(F221<>"",F221,"") ->  | BA271: =IF(H221<>"",H221,"") -> 
AU335: =IF(D285<>"",D285,"") ->  | AW335: =IF(E285<>"",E285,"") ->  | AY335: =IF(F285<>"",F285,"") ->  | BA335: =IF(H285<>"",H285,"") -> 
AU399: =IF(D349<>"",D349,"") ->  | AW399: =IF(E349<>"",E349,"") ->  | AY399: =IF(F349<>"",F349,"") ->  | BA399: =IF(H349<>"",H349,"") -> 
AU463: =IF(D413<>"",D413,"") ->  | AW463: =IF(E413<>"",E413,"") ->  | AY463: =IF(F413<>"",F413,"") ->  | BA463: =IF(H413<>"",H413,"") -> 
AU527: =IF(D477<>"",D477,"") ->  | AW527: =IF(E477<>"",E477,"") ->  | AY527: =IF(F477<>"",F477,"") ->  | BA527: =IF(H477<>"",H477,"") -> 
AU591: =IF(D541<>"",D541,"") ->  | AW591: =IF(E541<>"",E541,"") ->  | AY591: =IF(F541<>"",F541,"") ->  | BA591: =IF(H541<>"",H541,"") -> 
AU655: =IF(D605<>"",D605,"") ->  | AW655: =IF(E605<>"",E605,"") ->  | AY655: =IF(F605<>"",F605,"") ->  | BA655: =IF(H605<>"",H605,"") -> 
AU719: =IF(D669<>"",D669,"") ->  | AW719: =IF(E669<>"",E669,"") ->  | AY719: =IF(F669<>"",F669,"") ->  | BA719: =IF(H669<>"",H669,"") -> 
AU783: =IF(D733<>"",D733,"") ->  | AW783: =IF(E733<>"",E733,"") ->  | AY783: =IF(F733<>"",F733,"") ->  | BA783: =IF(H733<>"",H733,"") -> 
AU847: =IF(D797<>"",D797,"") ->  | AW847: =IF(E797<>"",E797,"") ->  | AY847: =IF(F797<>"",F797,"") ->  | BA847: =IF(H797<>"",H797,"") -> 
AU911: =IF(D861<>"",D861,"") ->  | AW911: =IF(E861<>"",E861,"") ->  | AY911: =IF(F861<>"",F861,"") ->  | BA911: =IF(H861<>"",H861,"") -> 
AU975: =IF(D925<>"",D925,"") ->  | AW975: =IF(E925<>"",E925,"") ->  | AY975: =IF(F925<>"",F925,"") ->  | BA975: =IF(H925<>"",H925,"") -> 
AU1039: =IF(D989<>"",D989,"") ->  | AW1039: =IF(E989<>"",E989,"") ->  | AY1039: =IF(F989<>"",F989,"") ->  | BA1039: =IF(H989<>"",H989,"") -> 
AU1103: =IF(D1053<>"",D1053,"") ->  | AW1103: =IF(E1053<>"",E1053,"") ->  | AY1103: =IF(F1053<>"",F1053,"") ->  | BA1103: =IF(H1053<>"",H1053,"") -> 
AU1167: =IF(D1117<>"",D1117,"") ->  | AW1167: =IF(E1117<>"",E1117,"") ->  | AY1167: =IF(F1117<>"",F1117,"") ->  | BA1167: =IF(H1117<>"",H1117,"") -> 
AU1231: =IF(D1181<>"",D1181,"") ->  | AW1231: =IF(E1181<>"",E1181,"") ->  | AY1231: =IF(F1181<>"",F1181,"") ->  | BA1231: =IF(H1181<>"",H1181,"") -> 
AU1295: =IF(D1245<>"",D1245,"") ->  | AW1295: =IF(E1245<>"",E1245,"") ->  | AY1295: =IF(F1245<>"",F1245,"") ->  | BA1295: =IF(H1245<>"",H1245,"") -> 
AU1359: =IF(D1309<>"",D1309,"") ->  | AW1359: =IF(E1309<>"",E1309,"") ->  | AY1359: =IF(F1309<>"",F1309,"") ->  | BA1359: =IF(H1309<>"",H1309,"") -> 
AU1423: =IF(D1373<>"",D1373,"") ->  | AW1423: =IF(E1373<>"",E1373,"") ->  | AY1423: =IF(F1373<>"",F1373,"") ->  | BA1423: =IF(H1373<>"",H1373,"") -> 
AU1487: =IF(D1437<>"",D1437,"") ->  | AW1487: =IF(E1437<>"",E1437,"") ->  | AY1487: =IF(F1437<>"",F1437,"") ->  | BA1487: =IF(H1437<>"",H1437,"") -> 
AU1551: =IF(D1501<>"",D1501,"") ->  | AW1551: =IF(E1501<>"",E1501,"") ->  | AY1551: =IF(F1501<>"",F1501,"") ->  | BA1551: =IF(H1501<>"",H1501,"") -> 
AU1591: =IF(D1541<>"",D1541,"") -> 
AU1592: =IF(D1542<>"",D1542,"") -> 
AU1593: =IF(D1543<>"",D1543,"") -> 
AU1594: =IF(D1544<>"",D1544,"") -> 

Sheet u8
AU2: =$AN$14 -> Ilustração 8.A - Volume de vendas do comércio com Convênio - em %
D4: =CONCATENATE("Selecionado por subconjunto: ",MID(E6,1,200)) -> Selecionado por subconjunto: Comércio Ampliado | AU4: =$D$4 -> Selecionado por subconjunto: Comércio Ampliado
D5: h | E5: 8
D6: g | E6: Comércio Ampliado
K7: h | L7: 8 | AU7: =IF(ISERROR(#REF!),"",#REF!) -> 
D8: Rótulos de Linha | E8: Média de v | K8: y1 | L8: (Tudo)
D9: 2018-08-01 | E9: 3.292862705
D10: 2018-09-01 | E10: 3.562836712 | K10: Rótulos de Linha | L10: Média de v | AM10: Número: | AN10: 8
D11: 2018-10-01 | E11: 0.8653429811 | K11: Farmácias, Perfumarias e Produtos Óticos | L11: 15.01506208 | AM11: Título: | AN11: Volume de vendas do comércio com Convênio - em %
D12: 2018-11-01 | E12: 3.8 | K12: Comércio Ampliado | L12: 4.042326706
D13: 2018-12-01 | E13: 4.270641803 | K13: Combustíveis e Lubrificantes e GLP | L13: 2.601013529
D14: 2019-01-01 | E14: 4.289613783 | K14: Livros, Jornais, Revistas e Papelaria | L14: 1.171790407 | AM14: =CONCATENATE("Ilustração ",AN10,".A"," - ",AN11) -> Ilustração 8.A - Volume de vendas do comércio com Convênio - em % | AN14: =IF(AN10=0,"",AM14) -> Ilustração 8.A - Volume de vendas do comércio com Convênio - em %
D15: 2019-02-01 | E15: 0.8653429811 | K15: Lojas de Vestuários,Tecidos e Calçados | L15: 0.907858347 | AM15: =CONCATENATE("Ilustração ",AN10,".B"," - ",AN11) -> Ilustração 8.B - Volume de vendas do comércio com Convênio - em % | AN15: =IF(AN10=0,"",AM15) -> Ilustração 8.B - Volume de vendas do comércio com Convênio - em %
D16: 2019-03-01 | E16: 4.789410079 | K16: Lojas de Móveis e Decorações | L16: 0.797645293
D17: 2019-04-01 | E17: 3.735498171 | K17: Lojas de Eletroeeletrônicos e Informática | L17: 0.4446060835
D18: 2019-05-01 | E18: 4.789410079 | K18: Revendedoras de Veículos | L18: 0.297636567
D19: 2019-06-01 | E19: 4.262454125 | K19: Supermercados e Minimercados | L19: 0.186186061
D20: 2019-07-01 | E20: 9.245533656 | K20: Lojas de Materiais de Construção | L20: 0.1359939577
D21: 2019-08-01 | E21: 4.78130011
AU51: =$AN$15 -> Ilustração 8.B - Volume de vendas do comércio com Convênio - em %
AU55: =IF(ISERROR(#REF!),"",#REF!) -> 
AU271: =IF(D221<>"",D221,"") ->  | AW271: =IF(E221<>"",E221,"") ->  | AY271: =IF(F221<>"",F221,"") ->  | BA271: =IF(H221<>"",H221,"") -> 
AU335: =IF(D285<>"",D285,"") ->  | AW335: =IF(E285<>"",E285,"") ->  | AY335: =IF(F285<>"",F285,"") ->  | BA335: =IF(H285<>"",H285,"") -> 
AU399: =IF(D349<>"",D349,"") ->  | AW399: =IF(E349<>"",E349,"") ->  | AY399: =IF(F349<>"",F349,"") ->  | BA399: =IF(H349<>"",H349,"") -> 
AU463: =IF(D413<>"",D413,"") ->  | AW463: =IF(E413<>"",E413,"") ->  | AY463: =IF(F413<>"",F413,"") ->  | BA463: =IF(H413<>"",H413,"") -> 
AU527: =IF(D477<>"",D477,"") ->  | AW527: =IF(E477<>"",E477,"") ->  | AY527: =IF(F477<>"",F477,"") ->  | BA527: =IF(H477<>"",H477,"") -> 
AU591: =IF(D541<>"",D541,"") ->  | AW591: =IF(E541<>"",E541,"") ->  | AY591: =IF(F541<>"",F541,"") ->  | BA591: =IF(H541<>"",H541,"") -> 
AU655: =IF(D605<>"",D605,"") ->  | AW655: =IF(E605<>"",E605,"") ->  | AY655: =IF(F605<>"",F605,"") ->  | BA655: =IF(H605<>"",H605,"") -> 
AU719: =IF(D669<>"",D669,"") ->  | AW719: =IF(E669<>"",E669,"") ->  | AY719: =IF(F669<>"",F669,"") ->  | BA719: =IF(H669<>"",H669,"") -> 
AU783: =IF(D733<>"",D733,"") ->  | AW783: =IF(E733<>"",E733,"") ->  | AY783: =IF(F733<>"",F733,"") ->  | BA783: =IF(H733<>"",H733,"") -> 
AU847: =IF(D797<>"",D797,"") ->  | AW847: =IF(E797<>"",E797,"") ->  | AY847: =IF(F797<>"",F797,"") ->  | BA847: =IF(H797<>"",H797,"") -> 
AU911: =IF(D861<>"",D861,"") ->  | AW911: =IF(E861<>"",E861,"") ->  | AY911: =IF(F861<>"",F861,"") ->  | BA911: =IF(H861<>"",H861,"") -> 
AU975: =IF(D925<>"",D925,"") ->  | AW975: =IF(E925<>"",E925,"") ->  | AY975: =IF(F925<>"",F925,"") ->  | BA975: =IF(H925<>"",H925,"") -> 
AU1039: =IF(D989<>"",D989,"") ->  | AW1039: =IF(E989<>"",E989,"") ->  | AY1039: =IF(F989<>"",F989,"") ->  | BA1039: =IF(H989<>"",H989,"") -> 
AU1103: =IF(D1053<>"",D1053,"") ->  | AW1103: =IF(E1053<>"",E1053,"") ->  | AY1103: =IF(F1053<>"",F1053,"") ->  | BA1103: =IF(H1053<>"",H1053,"") -> 
AU1167: =IF(D1117<>"",D1117,"") ->  | AW1167: =IF(E1117<>"",E1117,"") ->  | AY1167: =IF(F1117<>"",F1117,"") ->  | BA1167: =IF(H1117<>"",H1117,"") -> 
AU1231: =IF(D1181<>"",D1181,"") ->  | AW1231: =IF(E1181<>"",E1181,"") ->  | AY1231: =IF(F1181<>"",F1181,"") ->  | BA1231: =IF(H1181<>"",H1181,"") -> 
AU1295: =IF(D1245<>"",D1245,"") ->  | AW1295: =IF(E1245<>"",E1245,"") ->  | AY1295: =IF(F1245<>"",F1245,"") ->  | BA1295: =IF(H1245<>"",H1245,"") -> 
AU1359: =IF(D1309<>"",D1309,"") ->  | AW1359: =IF(E1309<>"",E1309,"") ->  | AY1359: =IF(F1309<>"",F1309,"") ->  | BA1359: =IF(H1309<>"",H1309,"") -> 
AU1423: =IF(D1373<>"",D1373,"") ->  | AW1423: =IF(E1373<>"",E1373,"") ->  | AY1423: =IF(F1373<>"",F1373,"") ->  | BA1423: =IF(H1373<>"",H1373,"") -> 
AU1487: =IF(D1437<>"",D1437,"") ->  | AW1487: =IF(E1437<>"",E1437,"") ->  | AY1487: =IF(F1437<>"",F1437,"") ->  | BA1487: =IF(H1437<>"",H1437,"") -> 
AU1551: =IF(D1501<>"",D1501,"") ->  | AW1551: =IF(E1501<>"",E1501,"") ->  | AY1551: =IF(F1501<>"",F1501,"") ->  | BA1551: =IF(H1501<>"",H1501,"") -> 
AU1591: =IF(D1541<>"",D1541,"") -> 
AU1592: =IF(D1542<>"",D1542,"") -> 
AU1593: =IF(D1543<>"",D1543,"") -> 
AU1594: =IF(D1544<>"",D1544,"") -> 

Sheet u9
AU2: =$AN$14 -> Ilustração 9.A - Volume de vendas do comércio com Empenho - em %
D4: =CONCATENATE("Selecionado por subconjunto: ",MID(E6,1,200)) -> Selecionado por subconjunto: Comércio Ampliado | AU4: =$D$4 -> Selecionado por subconjunto: Comércio Ampliado
D5: h | E5: 9
D6: g | E6: Comércio Ampliado
K7: h | L7: 9 | AU7: =IF(ISERROR(#REF!),"",#REF!) -> 
D8: Rótulos de Linha | E8: Média de v | K8: y1 | L8: (Tudo)
D9: 2018-08-01 | E9: 0.333172891
D10: 2018-09-01 | E10: 0.1357470988 | K10: Rótulos de Linha | L10: Média de v | AM10: Número: | AN10: 9
D11: 2018-10-01 | E11: 0.007600535741 | K11: Lojas de Eletroeeletrônicos e Informática | L11: 4.661224962 | AM11: Título: | AN11: Volume de vendas do comércio com Empenho - em %
D12: 2018-11-01 | E12: 0.1 | K12: Lojas de Vestuários,Tecidos e Calçados | L12: 0.1339962842
D13: 2018-12-01 | E13: 0 | K13: Comércio Ampliado | L13: 0.1295121761
D14: 2019-01-01 | E14: 0 | K14: Livros, Jornais, Revistas e Papelaria | L14: 0.03656707732 | AM14: =CONCATENATE("Ilustração ",AN10,".A"," - ",AN11) -> Ilustração 9.A - Volume de vendas do comércio com Empenho - em % | AN14: =IF(AN10=0,"",AM14) -> Ilustração 9.A - Volume de vendas do comércio com Empenho - em %
D15: 2019-02-01 | E15: 0.007600535741 | K15: Revendedoras de Veículos | L15: 0.02154175251 | AM15: =CONCATENATE("Ilustração ",AN10,".B"," - ",AN11) -> Ilustração 9.B - Volume de vendas do comércio com Empenho - em % | AN15: =IF(AN10=0,"",AM15) -> Ilustração 9.B - Volume de vendas do comércio com Empenho - em %
D16: 2019-03-01 | E16: 0.2317447036 | K16: Combustíveis e Lubrificantes e GLP | L16: 0.007498755963
D17: 2019-04-01 | E17: 0.1257083816 | K17: Farmácias, Perfumarias e Produtos Óticos | L17: 0
D18: 2019-05-01 | E18: 0.2317447036 | K18: Lojas de Materiais de Construção | L18: 0
D19: 2019-06-01 | E19: 0.1787265426 | K19: Supermercados e Minimercados | L19: 0
D20: 2019-07-01 | E20: 0.1751697644 | K20: Lojas de Móveis e Decorações | L20: 0
D21: 2019-08-01 | E21: 0.1564431327
AU51: =$AN$15 -> Ilustração 9.B - Volume de vendas do comércio com Empenho - em %
AU55: =IF(ISERROR(#REF!),"",#REF!) -> 
AU271: =IF(D221<>"",D221,"") ->  | AW271: =IF(E221<>"",E221,"") ->  | AY271: =IF(F221<>"",F221,"") ->  | BA271: =IF(H221<>"",H221,"") -> 
AU335: =IF(D285<>"",D285,"") ->  | AW335: =IF(E285<>"",E285,"") ->  | AY335: =IF(F285<>"",F285,"") ->  | BA335: =IF(H285<>"",H285,"") -> 
AU399: =IF(D349<>"",D349,"") ->  | AW399: =IF(E349<>"",E349,"") ->  | AY399: =IF(F349<>"",F349,"") ->  | BA399: =IF(H349<>"",H349,"") -> 
AU463: =IF(D413<>"",D413,"") ->  | AW463: =IF(E413<>"",E413,"") ->  | AY463: =IF(F413<>"",F413,"") ->  | BA463: =IF(H413<>"",H413,"") -> 
AU527: =IF(D477<>"",D477,"") ->  | AW527: =IF(E477<>"",E477,"") ->  | AY527: =IF(F477<>"",F477,"") ->  | BA527: =IF(H477<>"",H477,"") -> 
AU591: =IF(D541<>"",D541,"") ->  | AW591: =IF(E541<>"",E541,"") ->  | AY591: =IF(F541<>"",F541,"") ->  | BA591: =IF(H541<>"",H541,"") -> 
AU655: =IF(D605<>"",D605,"") ->  | AW655: =IF(E605<>"",E605,"") ->  | AY655: =IF(F605<>"",F605,"") ->  | BA655: =IF(H605<>"",H605,"") -> 
AU719: =IF(D669<>"",D669,"") ->  | AW719: =IF(E669<>"",E669,"") ->  | AY719: =IF(F669<>"",F669,"") ->  | BA719: =IF(H669<>"",H669,"") -> 
AU783: =IF(D733<>"",D733,"") ->  | AW783: =IF(E733<>"",E733,"") ->  | AY783: =IF(F733<>"",F733,"") ->  | BA783: =IF(H733<>"",H733,"") -> 
AU847: =IF(D797<>"",D797,"") ->  | AW847: =IF(E797<>"",E797,"") ->  | AY847: =IF(F797<>"",F797,"") ->  | BA847: =IF(H797<>"",H797,"") -> 
AU911: =IF(D861<>"",D861,"") ->  | AW911: =IF(E861<>"",E861,"") ->  | AY911: =IF(F861<>"",F861,"") ->  | BA911: =IF(H861<>"",H861,"") -> 
AU975: =IF(D925<>"",D925,"") ->  | AW975: =IF(E925<>"",E925,"") ->  | AY975: =IF(F925<>"",F925,"") ->  | BA975: =IF(H925<>"",H925,"") -> 
AU1039: =IF(D989<>"",D989,"") ->  | AW1039: =IF(E989<>"",E989,"") ->  | AY1039: =IF(F989<>"",F989,"") ->  | BA1039: =IF(H989<>"",H989,"") -> 
AU1103: =IF(D1053<>"",D1053,"") ->  | AW1103: =IF(E1053<>"",E1053,"") ->  | AY1103: =IF(F1053<>"",F1053,"") ->  | BA1103: =IF(H1053<>"",H1053,"") -> 
AU1167: =IF(D1117<>"",D1117,"") ->  | AW1167: =IF(E1117<>"",E1117,"") ->  | AY1167: =IF(F1117<>"",F1117,"") ->  | BA1167: =IF(H1117<>"",H1117,"") -> 
AU1231: =IF(D1181<>"",D1181,"") ->  | AW1231: =IF(E1181<>"",E1181,"") ->  | AY1231: =IF(F1181<>"",F1181,"") ->  | BA1231: =IF(H1181<>"",H1181,"") -> 
AU1295: =IF(D1245<>"",D1245,"") ->  | AW1295: =IF(E1245<>"",E1245,"") ->  | AY1295: =IF(F1245<>"",F1245,"") ->  | BA1295: =IF(H1245<>"",H1245,"") -> 
AU1359: =IF(D1309<>"",D1309,"") ->  | AW1359: =IF(E1309<>"",E1309,"") ->  | AY1359: =IF(F1309<>"",F1309,"") ->  | BA1359: =IF(H1309<>"",H1309,"") -> 
AU1423: =IF(D1373<>"",D1373,"") ->  | AW1423: =IF(E1373<>"",E1373,"") ->  | AY1423: =IF(F1373<>"",F1373,"") ->  | BA1423: =IF(H1373<>"",H1373,"") -> 
AU1487: =IF(D1437<>"",D1437,"") ->  | AW1487: =IF(E1437<>"",E1437,"") ->  | AY1487: =IF(F1437<>"",F1437,"") ->  | BA1487: =IF(H1437<>"",H1437,"") -> 
AU1551: =IF(D1501<>"",D1501,"") ->  | AW1551: =IF(E1501<>"",E1501,"") ->  | AY1551: =IF(F1501<>"",F1501,"") ->  | BA1551: =IF(H1501<>"",H1501,"") -> 
AU1591: =IF(D1541<>"",D1541,"") -> 
AU1592: =IF(D1542<>"",D1542,"") -> 
AU1593: =IF(D1543<>"",D1543,"") -> 
AU1594: =IF(D1544<>"",D1544,"") -> 

Sheet u1_1
AU2: =$AN$14 -> Ilustração 10.A - Variação percentual mensal do volume de vendas do comércio varejista frente ao mês anterior
D4: =CONCATENATE("Selecionado por subconjunto: ",MID(E6,1,200)) -> Selecionado por subconjunto: Comércio Ampliado | AU4: =$D$4 -> Selecionado por subconjunto: Comércio Ampliado
D5: h | E5: 10
D6: g | E6: Comércio Ampliado
K7: h | L7: 10 | AU7: =IF(ISERROR(#REF!),"",#REF!) -> 
D8: Rótulos de Linha | E8: Média de v | K8: y1 | L8: 2019-12-01
D9: 2018-12-01 | E9: 11.4967462
D10: 2019-01-01 | E10: -21.18504955 | K10: Rótulos de Linha | L10: Média de v | AM10: Número: | AN10: 10
D11: 2019-02-01 | E11: -8.558305314 | K11: Lojas de Vestuários,Tecidos e Calçados | L11: 91.47101865 | AM11: Título: | AN11: Variação percentual mensal do volume de vendas do comércio varejista frente ao mês anterior
D12: 2019-03-01 | E12: 9.687778 | K12: Comercio Restrito | L12: 20.67837665
D13: 2019-04-01 | E13: -4.488782565 | K13: Supermercados e Minimercados | L13: 20.22262831
D14: 2019-05-01 | E14: 8.797721553 | K14: Lojas de Móveis e Decorações | L14: 19.47003915 | AM14: =CONCATENATE("Ilustração ",AN10,".A"," - ",AN11) -> Ilustração 10.A - Variação percentual mensal do volume de vendas do comércio varejista frente ao mês anterior | AN14: =IF(AN10=0,"",AM14) -> Ilustração 10.A - Variação percentual mensal do volume de vendas do comércio varejista frente ao mês anterior
D15: 2019-06-01 | E15: -1.264606016 | K15: Comércio Ampliado | L15: 18.69078984 | AM15: =CONCATENATE("Ilustração ",AN10,".B"," - ",AN11) -> Ilustração 10.B - Variação percentual mensal do volume de vendas do comércio varejista frente ao mês anterior | AN15: =IF(AN10=0,"",AM15) -> Ilustração 10.B - Variação percentual mensal do volume de vendas do comércio varejista frente ao mês anterior
D16: 2019-07-01 | E16: 3.958373513 | K16: Lojas de Eletroeeletrônicos e Informática | L16: 16.28437371
D17: 2019-08-01 | E17: 1.37290217 | K17: Farmácias, Perfumarias e Produtos Óticos | L17: 7.305373628
D18: 2019-09-01 | E18: -3.721587589 | K18: Revendedoras de Veículos | L18: 7.079616418
D19: 2019-10-01 | E19: 1.049101346 | K19: Combustíveis e Lubrificantes e GLP | L19: 3.242083693
D20: 2019-11-01 | E20: 1.364026341 | K20: Lojas de Materiais de Construção | L20: -4.698370003
D21: 2019-12-01 | E21: 18.69078984 | K21: Livros, Jornais, Revistas e Papelaria | L21: -63.35671886
AU51: =$AN$15 -> Ilustração 10.B - Variação percentual mensal do volume de vendas do comércio varejista frente ao mês anterior
AU55: =IF(ISERROR(#REF!),"",#REF!) -> 
AU271: =IF(D221<>"",D221,"") ->  | AW271: =IF(E221<>"",E221,"") ->  | AY271: =IF(F221<>"",F221,"") ->  | BA271: =IF(H221<>"",H221,"") -> 
AU335: =IF(D285<>"",D285,"") ->  | AW335: =IF(E285<>"",E285,"") ->  | AY335: =IF(F285<>"",F285,"") ->  | BA335: =IF(H285<>"",H285,"") -> 
AU399: =IF(D349<>"",D349,"") ->  | AW399: =IF(E349<>"",E349,"") ->  | AY399: =IF(F349<>"",F349,"") ->  | BA399: =IF(H349<>"",H349,"") -> 
AU463: =IF(D413<>"",D413,"") ->  | AW463: =IF(E413<>"",E413,"") ->  | AY463: =IF(F413<>"",F413,"") ->  | BA463: =IF(H413<>"",H413,"") -> 
AU527: =IF(D477<>"",D477,"") ->  | AW527: =IF(E477<>"",E477,"") ->  | AY527: =IF(F477<>"",F477,"") ->  | BA527: =IF(H477<>"",H477,"") -> 
AU591: =IF(D541<>"",D541,"") ->  | AW591: =IF(E541<>"",E541,"") ->  | AY591: =IF(F541<>"",F541,"") ->  | BA591: =IF(H541<>"",H541,"") -> 
AU655: =IF(D605<>"",D605,"") ->  | AW655: =IF(E605<>"",E605,"") ->  | AY655: =IF(F605<>"",F605,"") ->  | BA655: =IF(H605<>"",H605,"") -> 
AU719: =IF(D669<>"",D669,"") ->  | AW719: =IF(E669<>"",E669,"") ->  | AY719: =IF(F669<>"",F669,"") ->  | BA719: =IF(H669<>"",H669,"") -> 
AU783: =IF(D733<>"",D733,"") ->  | AW783: =IF(E733<>"",E733,"") ->  | AY783: =IF(F733<>"",F733,"") ->  | BA783: =IF(H733<>"",H733,"") -> 
AU847: =IF(D797<>"",D797,"") ->  | AW847: =IF(E797<>"",E797,"") ->  | AY847: =IF(F797<>"",F797,"") ->  | BA847: =IF(H797<>"",H797,"") -> 
AU911: =IF(D861<>"",D861,"") ->  | AW911: =IF(E861<>"",E861,"") ->  | AY911: =IF(F861<>"",F861,"") ->  | BA911: =IF(H861<>"",H861,"") -> 
AU975: =IF(D925<>"",D925,"") ->  | AW975: =IF(E925<>"",E925,"") ->  | AY975: =IF(F925<>"",F925,"") ->  | BA975: =IF(H925<>"",H925,"") -> 
AU1039: =IF(D989<>"",D989,"") ->  | AW1039: =IF(E989<>"",E989,"") ->  | AY1039: =IF(F989<>"",F989,"") ->  | BA1039: =IF(H989<>"",H989,"") -> 
AU1103: =IF(D1053<>"",D1053,"") ->  | AW1103: =IF(E1053<>"",E1053,"") ->  | AY1103: =IF(F1053<>"",F1053,"") ->  | BA1103: =IF(H1053<>"",H1053,"") -> 
AU1167: =IF(D1117<>"",D1117,"") ->  | AW1167: =IF(E1117<>"",E1117,"") ->  | AY1167: =IF(F1117<>"",F1117,"") ->  | BA1167: =IF(H1117<>"",H1117,"") -> 
AU1231: =IF(D1181<>"",D1181,"") ->  | AW1231: =IF(E1181<>"",E1181,"") ->  | AY1231: =IF(F1181<>"",F1181,"") ->  | BA1231: =IF(H1181<>"",H1181,"") -> 
AU1295: =IF(D1245<>"",D1245,"") ->  | AW1295: =IF(E1245<>"",E1245,"") ->  | AY1295: =IF(F1245<>"",F1245,"") ->  | BA1295: =IF(H1245<>"",H1245,"") -> 
AU1359: =IF(D1309<>"",D1309,"") ->  | AW1359: =IF(E1309<>"",E1309,"") ->  | AY1359: =IF(F1309<>"",F1309,"") ->  | BA1359: =IF(H1309<>"",H1309,"") -> 
AU1423: =IF(D1373<>"",D1373,"") ->  | AW1423: =IF(E1373<>"",E1373,"") ->  | AY1423: =IF(F1373<>"",F1373,"") ->  | BA1423: =IF(H1373<>"",H1373,"") -> 
AU1487: =IF(D1437<>"",D1437,"") ->  | AW1487: =IF(E1437<>"",E1437,"") ->  | AY1487: =IF(F1437<>"",F1437,"") ->  | BA1487: =IF(H1437<>"",H1437,"") -> 
AU1551: =IF(D1501<>"",D1501,"") ->  | AW1551: =IF(E1501<>"",E1501,"") ->  | AY1551: =IF(F1501<>"",F1501,"") ->  | BA1551: =IF(H1501<>"",H1501,"") -> 
AU1591: =IF(D1541<>"",D1541,"") -> 
AU1592: =IF(D1542<>"",D1542,"") -> 
AU1593: =IF(D1543<>"",D1543,"") -> 
AU1594: =IF(D1544<>"",D1544,"") -> 

Sheet u2_1
AU2: =$AN$14 -> Ilustração 11.A - Variação percentual mensal do volume de vendas do comércio varejista frente ao mesmo mês do ano anterior
D4: =CONCATENATE("Selecionado por subconjunto: ",MID(E6,1,200)) -> Selecionado por subconjunto: Comércio Ampliado | AU4: =$D$4 -> Selecionado por subconjunto: Comércio Ampliado
D5: h | E5: 11
D6: g | E6: Comércio Ampliado
K7: h | L7: 11 | AU7: =IF(ISERROR(#REF!),"",#REF!) -> 
D8: Rótulos de Linha | E8: Média de v | K8: y1 | L8: 2018-12-01
D9: 2018-12-01 | E9: -0.09718172983
D10: 2019-01-01 | E10: -6.978451132 | K10: Rótulos de Linha | L10: Média de v | AM10: Número: | AN10: 11
D11: 2019-02-01 | E11: 3.474411587 | K11: Lojas de Móveis e Decorações | L11: 5.076142132 | AM11: Título: | AN11: Variação percentual mensal do volume de vendas do comércio varejista frente ao mesmo mês do ano anterior
D12: 2019-03-01 | E12: -4.618393739 | K12: Revendedoras de Veículos | L12: 3.850931677
D13: 2019-04-01 | E13: -5.575044266 | K13: Farmácias, Perfumarias e Produtos Óticos | L13: 2.448979592
D14: 2019-05-01 | E14: -1.001326211 | K14: Comércio Ampliado | L14: -0.09718172983 | AM14: =CONCATENATE("Ilustração ",AN10,".A"," - ",AN11) -> Ilustração 11.A - Variação percentual mensal do volume de vendas do comércio varejista frente ao mesmo mês do ano anterior | AN14: =IF(AN10=0,"",AM14) -> Ilustração 11.A - Variação percentual mensal do volume de vendas do comércio varejista frente ao mesmo mês do ano anterior
D15: 2019-06-01 | E15: 1.309794904 | K15: Lojas de Materiais de Construção | L15: -0.5861664713 | AM15: =CONCATENATE("Ilustração ",AN10,".B"," - ",AN11) -> Ilustração 11.B - Variação percentual mensal do volume de vendas do comércio varejista frente ao mesmo mês do ano anterior | AN15: =IF(AN10=0,"",AM15) -> Ilustração 11.B - Variação percentual mensal do volume de vendas do comércio varejista frente ao mesmo mês do ano anterior
D16: 2019-07-01 | E16: 0.2062107956 | K16: Lojas de Vestuários,Tecidos e Calçados | L16: -0.616966581
D17: 2019-08-01 | E17: -0.8257544093 | K17: Comercio Restrito | L17: -1.060070671
D18: 2019-09-01 | E18: 1.802987737 | K18: Combustíveis e Lubrificantes e GLP | L18: -1.204819277
D19: 2019-10-01 | E19: -0.1334059187 | K19: Lojas de Eletroeeletrônicos e Informática | L19: -5.263157895
D20: 2019-11-01 | E20: -6.017512554 | K20: Supermercados e Minimercados | L20: -9.701492537
D21: 2019-12-01 | E21: 0.04646813361 | K21: Livros, Jornais, Revistas e Papelaria | L21: -20.95890411
AU51: =$AN$15 -> Ilustração 11.B - Variação percentual mensal do volume de vendas do comércio varejista frente ao mesmo mês do ano anterior
AU55: =IF(ISERROR(#REF!),"",#REF!) -> 
AU271: =IF(D221<>"",D221,"") ->  | AW271: =IF(E221<>"",E221,"") ->  | AY271: =IF(F221<>"",F221,"") ->  | BA271: =IF(H221<>"",H221,"") -> 
AU335: =IF(D285<>"",D285,"") ->  | AW335: =IF(E285<>"",E285,"") ->  | AY335: =IF(F285<>"",F285,"") ->  | BA335: =IF(H285<>"",H285,"") -> 
AU399: =IF(D349<>"",D349,"") ->  | AW399: =IF(E349<>"",E349,"") ->  | AY399: =IF(F349<>"",F349,"") ->  | BA399: =IF(H349<>"",H349,"") -> 
AU463: =IF(D413<>"",D413,"") ->  | AW463: =IF(E413<>"",E413,"") ->  | AY463: =IF(F413<>"",F413,"") ->  | BA463: =IF(H413<>"",H413,"") -> 
AU527: =IF(D477<>"",D477,"") ->  | AW527: =IF(E477<>"",E477,"") ->  | AY527: =IF(F477<>"",F477,"") ->  | BA527: =IF(H477<>"",H477,"") -> 
AU591: =IF(D541<>"",D541,"") ->  | AW591: =IF(E541<>"",E541,"") ->  | AY591: =IF(F541<>"",F541,"") ->  | BA591: =IF(H541<>"",H541,"") -> 
AU655: =IF(D605<>"",D605,"") ->  | AW655: =IF(E605<>"",E605,"") ->  | AY655: =IF(F605<>"",F605,"") ->  | BA655: =IF(H605<>"",H605,"") -> 
AU719: =IF(D669<>"",D669,"") ->  | AW719: =IF(E669<>"",E669,"") ->  | AY719: =IF(F669<>"",F669,"") ->  | BA719: =IF(H669<>"",H669,"") -> 
AU783: =IF(D733<>"",D733,"") ->  | AW783: =IF(E733<>"",E733,"") ->  | AY783: =IF(F733<>"",F733,"") ->  | BA783: =IF(H733<>"",H733,"") -> 
AU847: =IF(D797<>"",D797,"") ->  | AW847: =IF(E797<>"",E797,"") ->  | AY847: =IF(F797<>"",F797,"") ->  | BA847: =IF(H797<>"",H797,"") -> 
AU911: =IF(D861<>"",D861,"") ->  | AW911: =IF(E861<>"",E861,"") ->  | AY911: =IF(F861<>"",F861,"") ->  | BA911: =IF(H861<>"",H861,"") -> 
AU975: =IF(D925<>"",D925,"") ->  | AW975: =IF(E925<>"",E925,"") ->  | AY975: =IF(F925<>"",F925,"") ->  | BA975: =IF(H925<>"",H925,"") -> 
AU1039: =IF(D989<>"",D989,"") ->  | AW1039: =IF(E989<>"",E989,"") ->  | AY1039: =IF(F989<>"",F989,"") ->  | BA1039: =IF(H989<>"",H989,"") -> 
AU1103: =IF(D1053<>"",D1053,"") ->  | AW1103: =IF(E1053<>"",E1053,"") ->  | AY1103: =IF(F1053<>"",F1053,"") ->  | BA1103: =IF(H1053<>"",H1053,"") -> 
AU1167: =IF(D1117<>"",D1117,"") ->  | AW1167: =IF(E1117<>"",E1117,"") ->  | AY1167: =IF(F1117<>"",F1117,"") ->  | BA1167: =IF(H1117<>"",H1117,"") -> 
AU1231: =IF(D1181<>"",D1181,"") ->  | AW1231: =IF(E1181<>"",E1181,"") ->  | AY1231: =IF(F1181<>"",F1181,"") ->  | BA1231: =IF(H1181<>"",H1181,"") -> 
AU1295: =IF(D1245<>"",D1245,"") ->  | AW1295: =IF(E1245<>"",E1245,"") ->  | AY1295: =IF(F1245<>"",F1245,"") ->  | BA1295: =IF(H1245<>"",H1245,"") -> 
AU1359: =IF(D1309<>"",D1309,"") ->  | AW1359: =IF(E1309<>"",E1309,"") ->  | AY1359: =IF(F1309<>"",F1309,"") ->  | BA1359: =IF(H1309<>"",H1309,"") -> 
AU1423: =IF(D1373<>"",D1373,"") ->  | AW1423: =IF(E1373<>"",E1373,"") ->  | AY1423: =IF(F1373<>"",F1373,"") ->  | BA1423: =IF(H1373<>"",H1373,"") -> 
AU1487: =IF(D1437<>"",D1437,"") ->  | AW1487: =IF(E1437<>"",E1437,"") ->  | AY1487: =IF(F1437<>"",F1437,"") ->  | BA1487: =IF(H1437<>"",H1437,"") -> 
AU1551: =IF(D1501<>"",D1501,"") ->  | AW1551: =IF(E1501<>"",E1501,"") ->  | AY1551: =IF(F1501<>"",F1501,"") ->  | BA1551: =IF(H1501<>"",H1501,"") -> 
AU1591: =IF(D1541<>"",D1541,"") -> 
AU1592: =IF(D1542<>"",D1542,"") -> 
AU1593: =IF(D1543<>"",D1543,"") -> 
AU1594: =IF(D1544<>"",D1544,"") -> 

Sheet u3_1
AU2: =$AN$14 -> Ilustração 12.A - Variação percentual mensal do volume de vendas do comércio varejista acumulado no ano
D4: =CONCATENATE("Selecionado por subconjunto: ",MID(E6,1,200)) -> Selecionado por subconjunto: Comércio Ampliado | AU4: =$D$4 -> Selecionado por subconjunto: Comércio Ampliado
D5: h | E5: 12
D6: g | E6: Comércio Ampliado
K7: h | L7: 12 | AU7: =IF(ISERROR(#REF!),"",#REF!) -> 
D8: Rótulos de Linha | E8: Média de v | K8: y1 | L8: 2019-12-01
D9: 2018-12-01 | E9: 3.074493806
D10: 2019-01-01 | E10: -6.978451132 | K10: Rótulos de Linha | L10: Média de v | AM10: Número: | AN10: 12
D11: 2019-02-01 | E11: -2.262477782 | K11: Revendedoras de Veículos | L11: 8.057483624 | AM11: Título: | AN11: Variação percentual mensal do volume de vendas do comércio varejista acumulado no ano
D12: 2019-03-01 | E12: -3.085454574 | K12: Lojas de Materiais de Construção | L12: 2.623110129
D13: 2019-04-01 | E13: -3.713005241 | K13: Farmácias, Perfumarias e Produtos Óticos | L13: 2.104608806
D14: 2019-05-01 | E14: -3.150763576 | K14: Lojas de Móveis e Decorações | L14: 0.8868171534 | AM14: =CONCATENATE("Ilustração ",AN10,".A"," - ",AN11) -> Ilustração 12.A - Variação percentual mensal do volume de vendas do comércio varejista acumulado no ano | AN14: =IF(AN10=0,"",AM14) -> Ilustração 12.A - Variação percentual mensal do volume de vendas do comércio varejista acumulado no ano
D15: 2019-06-01 | E15: -2.40718658 | K15: Comércio Ampliado | L15: -1.603275177 | AM15: =CONCATENATE("Ilustração ",AN10,".B"," - ",AN11) -> Ilustração 12.B - Variação percentual mensal do volume de vendas do comércio varejista acumulado no ano | AN15: =IF(AN10=0,"",AM15) -> Ilustração 12.B - Variação percentual mensal do volume de vendas do comércio varejista acumulado no ano
D16: 2019-07-01 | E16: -2.017564255 | K16: Comercio Restrito | L16: -5.324893392
D17: 2019-08-01 | E17: -1.859677962 | K17: Lojas de Vestuários,Tecidos e Calçados | L17: -6.345646501
D18: 2019-09-01 | E18: -1.454880091 | K18: Supermercados e Minimercados | L18: -18.77955666
D19: 2019-10-01 | E19: -1.319813596 | K19: Combustíveis e Lubrificantes e GLP | L19: -25.58333122
D20: 2019-11-01 | E20: -1.785692744 | K20: Lojas de Eletroeeletrônicos e Informática | L20: -35.76228716
D21: 2019-12-01 | E21: -1.603275177 | K21: Livros, Jornais, Revistas e Papelaria | L21: -43.7490586
AU51: =$AN$15 -> Ilustração 12.B - Variação percentual mensal do volume de vendas do comércio varejista acumulado no ano
AU55: =IF(ISERROR(#REF!),"",#REF!) -> 
AU271: =IF(D221<>"",D221,"") ->  | AW271: =IF(E221<>"",E221,"") ->  | AY271: =IF(F221<>"",F221,"") ->  | BA271: =IF(H221<>"",H221,"") -> 
AU335: =IF(D285<>"",D285,"") ->  | AW335: =IF(E285<>"",E285,"") ->  | AY335: =IF(F285<>"",F285,"") ->  | BA335: =IF(H285<>"",H285,"") -> 
AU399: =IF(D349<>"",D349,"") ->  | AW399: =IF(E349<>"",E349,"") ->  | AY399: =IF(F349<>"",F349,"") ->  | BA399: =IF(H349<>"",H349,"") -> 
AU463: =IF(D413<>"",D413,"") ->  | AW463: =IF(E413<>"",E413,"") ->  | AY463: =IF(F413<>"",F413,"") ->  | BA463: =IF(H413<>"",H413,"") -> 
AU527: =IF(D477<>"",D477,"") ->  | AW527: =IF(E477<>"",E477,"") ->  | AY527: =IF(F477<>"",F477,"") ->  | BA527: =IF(H477<>"",H477,"") -> 
AU591: =IF(D541<>"",D541,"") ->  | AW591: =IF(E541<>"",E541,"") ->  | AY591: =IF(F541<>"",F541,"") ->  | BA591: =IF(H541<>"",H541,"") -> 
AU655: =IF(D605<>"",D605,"") ->  | AW655: =IF(E605<>"",E605,"") ->  | AY655: =IF(F605<>"",F605,"") ->  | BA655: =IF(H605<>"",H605,"") -> 
AU719: =IF(D669<>"",D669,"") ->  | AW719: =IF(E669<>"",E669,"") ->  | AY719: =IF(F669<>"",F669,"") ->  | BA719: =IF(H669<>"",H669,"") -> 
AU783: =IF(D733<>"",D733,"") ->  | AW783: =IF(E733<>"",E733,"") ->  | AY783: =IF(F733<>"",F733,"") ->  | BA783: =IF(H733<>"",H733,"") -> 
AU847: =IF(D797<>"",D797,"") ->  | AW847: =IF(E797<>"",E797,"") ->  | AY847: =IF(F797<>"",F797,"") ->  | BA847: =IF(H797<>"",H797,"") -> 
AU911: =IF(D861<>"",D861,"") ->  | AW911: =IF(E861<>"",E861,"") ->  | AY911: =IF(F861<>"",F861,"") ->  | BA911: =IF(H861<>"",H861,"") -> 
AU975: =IF(D925<>"",D925,"") ->  | AW975: =IF(E925<>"",E925,"") ->  | AY975: =IF(F925<>"",F925,"") ->  | BA975: =IF(H925<>"",H925,"") -> 
AU1039: =IF(D989<>"",D989,"") ->  | AW1039: =IF(E989<>"",E989,"") ->  | AY1039: =IF(F989<>"",F989,"") ->  | BA1039: =IF(H989<>"",H989,"") -> 
AU1103: =IF(D1053<>"",D1053,"") ->  | AW1103: =IF(E1053<>"",E1053,"") ->  | AY1103: =IF(F1053<>"",F1053,"") ->  | BA1103: =IF(H1053<>"",H1053,"") -> 
AU1167: =IF(D1117<>"",D1117,"") ->  | AW1167: =IF(E1117<>"",E1117,"") ->  | AY1167: =IF(F1117<>"",F1117,"") ->  | BA1167: =IF(H1117<>"",H1117,"") -> 
AU1231: =IF(D1181<>"",D1181,"") ->  | AW1231: =IF(E1181<>"",E1181,"") ->  | AY1231: =IF(F1181<>"",F1181,"") ->  | BA1231: =IF(H1181<>"",H1181,"") -> 
AU1295: =IF(D1245<>"",D1245,"") ->  | AW1295: =IF(E1245<>"",E1245,"") ->  | AY1295: =IF(F1245<>"",F1245,"") ->  | BA1295: =IF(H1245<>"",H1245,"") -> 
AU1359: =IF(D1309<>"",D1309,"") ->  | AW1359: =IF(E1309<>"",E1309,"") ->  | AY1359: =IF(F1309<>"",F1309,"") ->  | BA1359: =IF(H1309<>"",H1309,"") -> 
AU1423: =IF(D1373<>"",D1373,"") ->  | AW1423: =IF(E1373<>"",E1373,"") ->  | AY1423: =IF(F1373<>"",F1373,"") ->  | BA1423: =IF(H1373<>"",H1373,"") -> 
AU1487: =IF(D1437<>"",D1437,"") ->  | AW1487: =IF(E1437<>"",E1437,"") ->  | AY1487: =IF(F1437<>"",F1437,"") ->  | BA1487: =IF(H1437<>"",H1437,"") -> 
AU1551: =IF(D1501<>"",D1501,"") ->  | AW1551: =IF(E1501<>"",E1501,"") ->  | AY1551: =IF(F1501<>"",F1501,"") ->  | BA1551: =IF(H1501<>"",H1501,"") -> 
AU1591: =IF(D1541<>"",D1541,"") -> 
AU1592: =IF(D1542<>"",D1542,"") -> 
AU1593: =IF(D1543<>"",D1543,"") -> 
AU1594: =IF(D1544<>"",D1544,"") -> 

Sheet j9
D4: Pesquisa Mensal do Comércio Ampliado (PMC)
